Publisher Label,Publisher URI,"Supplier ID","Supplier","Invoice No.","Amount £","Purpose","Transaction Number","Payment Date","Organisational Unit","Cost Centre(T)","Internal Category Number"
"Wolverhampton City Council","http://opendatacommunities.org/id/metropolitan-district-council/wolverhampton","704328","Horizon Care & Education Group Limited","0000012217","4,100.00","TPP - Independent Schools","130244436","20/02/2019","Special Educational Needs","SEN Education OOC","R5036"
"Wolverhampton City Council","http://opendatacommunities.org/id/metropolitan-district-council/wolverhampton","704328","Horizon Care & Education Group Limited","P198196 03031920190211","17,924.00","TPP - Residential Care - Long Term","190560759","13/02/2019","Children & Young People In Care","Out of City Placements","R5400"
"Wolverhampton City Council","http://opendatacommunities.org/id/metropolitan-district-council/wolverhampton","704350","HS Sports Limited","INV-121571","65.00","Equipment - R & M","130240499","06/02/2019","Leisure Services","Central Baths","R4003"
"Wolverhampton City Council","http://opendatacommunities.org/id/metropolitan-district-council/wolverhampton","704350","HS Sports Limited","INV-121571","7.50","Equipment - R & M","130240499","06/02/2019","Leisure Services","Central Baths","R4003"
"Wolverhampton City Council","http://opendatacommunities.org/id/metropolitan-district-council/wolverhampton","704354","HSS Hire Service Group Limited","16686973","70.00","Equipment - Hire","130237303","01/02/2019","Bereavement Services","Bereavement services - Grounds maintenance","R4001"
"Wolverhampton City Council","http://opendatacommunities.org/id/metropolitan-district-council/wolverhampton","704380","Hydrop E.C.S.","IV21233","346.50","R&M - Departmental planned (external)","130244034","20/02/2019","Maintenance Programme","Centralised R&M","R2001"
"Wolverhampton City Council","http://opendatacommunities.org/id/metropolitan-district-council/wolverhampton","704380","Hydrop E.C.S.","IV21234","261.25","R&M - Departmental planned (external)","130244035","20/02/2019","Maintenance Programme","Centralised R&M","R2001"
"Wolverhampton City Council","http://opendatacommunities.org/id/metropolitan-district-council/wolverhampton","704380","Hydrop E.C.S.","IV21237","261.25","R&M - Departmental planned (external)","130244437","22/02/2019","Maintenance Programme","Centralised R&M","R2001"
"Wolverhampton City Council","http://opendatacommunities.org/id/metropolitan-district-council/wolverhampton","704426","Idox Software Limited","7024153","19,840.00","Computing - Purchase of Software","130241990","20/02/2019","Customer Services","City Direct","R4531"
"Wolverhampton City Council","http://opendatacommunities.org/id/metropolitan-district-council/wolverhampton","704432","IHS (Global) Limited","90761378","18,905.95","Services - Professional Fees","130243447","27/02/2019","Capital Programme","Capital Programme Team","R4400"
"Wolverhampton City Council","http://opendatacommunities.org/id/metropolitan-district-council/wolverhampton","704436","Iken Business Limited","IK26336","13,026.00","Computing - Purchase of Software","130242151","13/02/2019","Legal Services","Legal Services","R4531"
"Wolverhampton City Council","http://opendatacommunities.org/id/metropolitan-district-council/wolverhampton","704437","Ikonic Lifts Limited","1104","200.00","Equipment - Purchase","130240940","27/02/2019","Maintenance Programme","Centralised R&M","R4000"
"Wolverhampton City Council","http://opendatacommunities.org/id/metropolitan-district-council/wolverhampton","704487","Initial Fire Systems Limited","107257","97.00","Equipment - Purchase","130240500","06/02/2019","Visitor Economy","Outdoor Events Admin","R4000"
"Wolverhampton City Council","http://opendatacommunities.org/id/metropolitan-district-council/wolverhampton","704487","Initial Fire Systems Limited","107183","600.00","Equipment - Hire","130240203","06/02/2019","Visitor Economy","Outdoor Events Admin","R4001"
"Wolverhampton City Council","http://opendatacommunities.org/id/metropolitan-district-council/wolverhampton","704489","Initial Washroom Hygiene Ltd(Solutions)","32612423","30.52","Cleaning Supplies and Materials","130243195","20/02/2019","Visitor Economy","Art Gallery","R2705"
"Wolverhampton City Council","http://opendatacommunities.org/id/metropolitan-district-council/wolverhampton","704489","Initial Washroom Hygiene Ltd(Solutions)","32706358","30.52","Cleaning Supplies and Materials","130244780","22/02/2019","Visitor Economy","Art Gallery","R2705"
"Wolverhampton City Council","http://opendatacommunities.org/id/metropolitan-district-council/wolverhampton","704489","Initial Washroom Hygiene Ltd(Solutions)","31936264","27.73","Cleaning Supplies and Materials","130244607","20/02/2019","Visitor Economy","Art Gallery","R2705"
"Wolverhampton City Council","http://opendatacommunities.org/id/metropolitan-district-council/wolverhampton","704489","Initial Washroom Hygiene Ltd(Solutions)","31969843","27.73","Cleaning Supplies and Materials","130244608","20/02/2019","Visitor Economy","Art Gallery","R2705"
"Wolverhampton City Council","http://opendatacommunities.org/id/metropolitan-district-council/wolverhampton","704489","Initial Washroom Hygiene Ltd(Solutions)","32363318","29.09","Cleaning Supplies and Materials","130244609","20/02/2019","Visitor Economy","Art Gallery","R2705"
"Wolverhampton City Council","http://opendatacommunities.org/id/metropolitan-district-council/wolverhampton","704489","Initial Washroom Hygiene Ltd(Solutions)","32929398","-77.94","Cleaning Supplies and Materials","130237304","20/02/2019","Facilities Management","Culwell Street Depot","R2705"
"Wolverhampton City Council","http://opendatacommunities.org/id/metropolitan-district-council/wolverhampton","704489","Initial Washroom Hygiene Ltd(Solutions)","32676689","15.26","Cleaning Supplies and Materials","130209984","22/02/2019","Visitor Economy","Makers Dozen","R2705"
"Wolverhampton City Council","http://opendatacommunities.org/id/metropolitan-district-council/wolverhampton","704489","Initial Washroom Hygiene Ltd(Solutions)","32737429","15.26","Cleaning Supplies and Materials","130218251","22/02/2019","Visitor Economy","Makers Dozen","R2705"
"Wolverhampton City Council","http://opendatacommunities.org/id/metropolitan-district-council/wolverhampton","704489","Initial Washroom Hygiene Ltd(Solutions)","32955007","77.94","Cleaning Supplies and Materials","130239531","20/02/2019","Facilities Management","Culwell Street Depot","R2705"
"Wolverhampton City Council","http://opendatacommunities.org/id/metropolitan-district-council/wolverhampton","704489","Initial Washroom Hygiene Ltd(Solutions)","32584646","30.52","Cleaning Supplies and Materials","130243194","20/02/2019","Visitor Economy","Art Gallery","R2705"
"Wolverhampton City Council","http://opendatacommunities.org/id/metropolitan-district-council/wolverhampton","704514","Institute Of Licensing Limited","52664","700.00","Accommodation Costs","130244781","20/02/2019","Licensing","Private Hire Drivers","R4900"
"Wolverhampton City Council","http://opendatacommunities.org/id/metropolitan-district-council/wolverhampton","704514","Institute Of Licensing Limited","EVE25793","561.00","Training Expenses","130243448","13/02/2019","Licensing","Private Hire Drivers","R1650"
"Wolverhampton City Council","http://opendatacommunities.org/id/metropolitan-district-council/wolverhampton","704524","Integrated Water Services Limited","CD200099019","3,309.28","R&M - Departmental planned (external)","130243611","15/02/2019","Maintenance Programme","Centralised R&M","R2001"
"Wolverhampton City Council","http://opendatacommunities.org/id/metropolitan-district-council/wolverhampton","704524","Integrated Water Services Limited","CD200104084","2,039.80","R&M - Departmental planned (external)","130243612","15/02/2019","Maintenance Programme","Centralised R&M","R2001"
"Wolverhampton City Council","http://opendatacommunities.org/id/metropolitan-district-council/wolverhampton","704524","Integrated Water Services Limited","CD200104084","347.86","R&M - Departmental planned (external)","130243612","15/02/2019","Maintenance Programme","Centralised R&M","R2001"
"Wolverhampton City Council","http://opendatacommunities.org/id/metropolitan-district-council/wolverhampton","704524","Integrated Water Services Limited","CD200104084","3,309.28","R&M - Departmental planned (external)","130243612","15/02/2019","Maintenance Programme","Centralised R&M","R2001"
"Wolverhampton City Council","http://opendatacommunities.org/id/metropolitan-district-council/wolverhampton","704524","Integrated Water Services Limited","CD200112975","5,887.40","R&M - Departmental planned (external)","130238020","15/02/2019","Maintenance Programme","Centralised R&M","R2001"
"Wolverhampton City Council","http://opendatacommunities.org/id/metropolitan-district-council/wolverhampton","704524","Integrated Water Services Limited","CD200112975","347.82","R&M - Departmental planned (external)","130238020","15/02/2019","Maintenance Programme","Centralised R&M","R2001"
"Wolverhampton City Council","http://opendatacommunities.org/id/metropolitan-district-council/wolverhampton","704524","Integrated Water Services Limited","CD200108398","3,544.88","R&M - Departmental planned (external)","130234436","15/02/2019","Maintenance Programme","Centralised R&M","R2001"
"Wolverhampton City Council","http://opendatacommunities.org/id/metropolitan-district-council/wolverhampton","704545","Interwaste Municipal Limitedc/O Fleet Ca","29768","23.20","Equipment - Purchase","190567388","27/02/2019","Fleet Services","Fleet Management","R4000"
"Wolverhampton City Council","http://opendatacommunities.org/id/metropolitan-district-council/wolverhampton","704545","Interwaste Municipal Limitedc/O Fleet Ca","29768","103.50","Equipment - Purchase","190567388","27/02/2019","Fleet Services","Fleet Management","R4000"
"Wolverhampton City Council","http://opendatacommunities.org/id/metropolitan-district-council/wolverhampton","704545","Interwaste Municipal Limitedc/O Fleet Ca","29768","57.12","Equipment - Purchase","190567388","27/02/2019","Fleet Services","Fleet Management","R4000"
"Wolverhampton City Council","http://opendatacommunities.org/id/metropolitan-district-council/wolverhampton","704546","Intrahealth Limited","M2019Q315HL1IHCQ","36.00","TPP - Public Health Contracts","190567505","27/02/2019","Healthy Life Expectancy","Healthy Lifestyles","R5060"
"Wolverhampton City Council","http://opendatacommunities.org/id/metropolitan-district-council/wolverhampton","704546","Intrahealth Limited","M2019Q315HL1IHCQ.","59.50","TPP - Public Health Contracts","190567509","27/02/2019","Healthy Life Expectancy","Healthy Lifestyles","R5060"
"Wolverhampton City Council","http://opendatacommunities.org/id/metropolitan-district-council/wolverhampton","704546","Intrahealth Limited","M2019Q315HL2COMQ","125.00","TPP - Public Health Contracts","190567506","27/02/2019","Healthy Life Expectancy","Healthy Lifestyles","R5060"
"Wolverhampton City Council","http://opendatacommunities.org/id/metropolitan-district-council/wolverhampton","704546","Intrahealth Limited","M2019Q315HL2COMQ.","1,025.00","TPP - Public Health Contracts","190567510","27/02/2019","Healthy Life Expectancy","Healthy Lifestyles","R5060"
"Wolverhampton City Council","http://opendatacommunities.org/id/metropolitan-district-council/wolverhampton","704546","Intrahealth Limited","FOS4184","73.86","Services - Professional Fees","190565767","22/02/2019","Children & Young People In Care","Fostering Team & Allowances","R4400"
"Wolverhampton City Council","http://opendatacommunities.org/id/metropolitan-district-council/wolverhampton","704550","Invasive Vegetation Manag & Treatmnt Ltd","005200","700.00","Construction and Conversion","130243196","13/02/2019","-","GF - Blue Network","C1100"
"Wolverhampton City Council","http://opendatacommunities.org/id/metropolitan-district-council/wolverhampton","704572","ISS Damage Services UK Limited","AR10670/LG SI0000236","165.00","Insurance - General","190561975","15/02/2019","Audit Services","Property Insurances","R4962"
"Wolverhampton City Council","http://opendatacommunities.org/id/metropolitan-district-council/wolverhampton","704584","J Ashcroft","004","50.00","Marketing \ Non-staff advertising","130241372","06/02/2019","Corporate Communications","Communications & Marketing - General","R4317"
"Wolverhampton City Council","http://opendatacommunities.org/id/metropolitan-district-council/wolverhampton","704591","John Edgar (J E Hall)","WL218","60.00","Marketing \ Non-staff advertising","130243197","13/02/2019","Local Economy","Global Budgets","R4317"
"Wolverhampton City Council","http://opendatacommunities.org/id/metropolitan-district-council/wolverhampton","704591","John Edgar (J E Hall)","2","364.00","Services - Professional Fees","190565928","27/02/2019","Local Economy","Literature Festival","R4400"
"Wolverhampton City Council","http://opendatacommunities.org/id/metropolitan-district-council/wolverhampton","704593","J Edwards Glass","0000102901","60.00","R&M - Departmental planned (external)","130241991","01/02/2019","Maintenance Programme","Centralised R&M","R2001"
"Wolverhampton City Council","http://opendatacommunities.org/id/metropolitan-district-council/wolverhampton","704593","J Edwards Glass","0000103058","288.00","R&M - Departmental planned (external)","130242727","27/02/2019","Maintenance Programme","Centralised R&M","R2001"
"Wolverhampton City Council","http://opendatacommunities.org/id/metropolitan-district-council/wolverhampton","704593","J Edwards Glass","0000103082RE-ISSUE","65.00","R&M - Departmental planned (external)","130243796","20/02/2019","Maintenance Programme","Centralised R&M","R2001"
"Wolverhampton City Council","http://opendatacommunities.org/id/metropolitan-district-council/wolverhampton","704593","J Edwards Glass","0000103034","237.00","R&M - Departmental planned (external)","130241993","06/02/2019","Maintenance Programme","Centralised R&M","R2001"
"Wolverhampton City Council","http://opendatacommunities.org/id/metropolitan-district-council/wolverhampton","704593","J Edwards Glass","0000103033","282.79","R&M - Departmental planned (external)","130241992","06/02/2019","Markets","Bilston Market and Licensed Operations","R2001"
"Wolverhampton City Council","http://opendatacommunities.org/id/metropolitan-district-council/wolverhampton","704605","J Lacey Steeplejacks Contractors Limited","20304","6,785.00","Fixtures and Fittings - Purchases","130241483","06/02/2019","Maintenance Programme","Centralised R&M","R2500"
"Wolverhampton City Council","http://opendatacommunities.org/id/metropolitan-district-council/wolverhampton","704612","J P Lennard Limited","920259","530.72","Equipment - Purchase","130240204","06/02/2019","Leisure Services","Aldersley Leisure Village","R4000"
"Wolverhampton City Council","http://opendatacommunities.org/id/metropolitan-district-council/wolverhampton","704612","J P Lennard Limited","920476","138.04","Equipment - Purchase","130240205","06/02/2019","Leisure Services","Bert Williams Leisure Centre","R4000"
"Wolverhampton City Council","http://opendatacommunities.org/id/metropolitan-district-council/wolverhampton","704617","J S Bassi T/A Penn Radio Cars","268","987.50","Client Transport","130243025","08/02/2019","Special Educational Needs","Special - Transport","R3042"
"Wolverhampton City Council","http://opendatacommunities.org/id/metropolitan-district-council/wolverhampton","704617","J S Bassi T/A Penn Radio Cars","272","1,007.00","Client Transport","130243029","06/02/2019","Special Educational Needs","Secondary- Transport","R3042"
"Wolverhampton City Council","http://opendatacommunities.org/id/metropolitan-district-council/wolverhampton","704617","J S Bassi T/A Penn Radio Cars","269","703.00","Client Transport","130243026","06/02/2019","Special Educational Needs","Special - Transport","R3042"
"Wolverhampton City Council","http://opendatacommunities.org/id/metropolitan-district-council/wolverhampton","704617","J S Bassi T/A Penn Radio Cars","271","456.00","Client Transport","130243028","06/02/2019","Special Educational Needs","Special - Transport","R3042"
"Wolverhampton City Council","http://opendatacommunities.org/id/metropolitan-district-council/wolverhampton","704617","J S Bassi T/A Penn Radio Cars","270","665.00","Client Transport","130243027","06/02/2019","Special Educational Needs","Special - Transport","R3042"
"Wolverhampton City Council","http://opendatacommunities.org/id/metropolitan-district-council/wolverhampton","704617","J S Bassi T/A Penn Radio Cars","266","1,504.80","Client Transport","130242987","06/02/2019","Special Educational Needs","Special - Transport","R3042"
"Wolverhampton City Council","http://opendatacommunities.org/id/metropolitan-district-council/wolverhampton","704617","J S Bassi T/A Penn Radio Cars","267","1,674.72","Client Transport","130243614","13/02/2019","Special Educational Needs","Special - Transport","R3042"
"Wolverhampton City Council","http://opendatacommunities.org/id/metropolitan-district-council/wolverhampton","704639","Jack Moody Landscape & Civil Eng Ltd","IN6549","700.00","Construction and Conversion","130241712","13/02/2019","-","Bilston Urban Village","C1100"
"Wolverhampton City Council","http://opendatacommunities.org/id/metropolitan-district-council/wolverhampton","704639","Jack Moody Landscape & Civil Eng Ltd","IN6835","15,957.65","Construction and Conversion","130241713","01/02/2019","-","Bilston Urban Village","C1100"
"Wolverhampton City Council","http://opendatacommunities.org/id/metropolitan-district-council/wolverhampton","704640","Jackdaw (Tools) Limited","JV433926","10.01","Equipment - Purchase","190567427","27/02/2019","Fleet Services","Fleet Management","R4000"
"Wolverhampton City Council","http://opendatacommunities.org/id/metropolitan-district-council/wolverhampton","704640","Jackdaw (Tools) Limited","JV433926","10.01","Equipment - Purchase","190567427","27/02/2019","Fleet Services","Fleet Management","R4000"
"Wolverhampton City Council","http://opendatacommunities.org/id/metropolitan-district-council/wolverhampton","704640","Jackdaw (Tools) Limited","JV433926","28.93","Equipment - Purchase","190567427","27/02/2019","Fleet Services","Fleet Management","R4000"
"Wolverhampton City Council","http://opendatacommunities.org/id/metropolitan-district-council/wolverhampton","704640","Jackdaw (Tools) Limited","JV432737","11.60","Equipment - Purchase","190556557","01/02/2019","Fleet Services","Fleet Management","R4000"
"Wolverhampton City Council","http://opendatacommunities.org/id/metropolitan-district-council/wolverhampton","704640","Jackdaw (Tools) Limited","JV431696","10.89","Equipment - Purchase","190562060","15/02/2019","Fleet Services","Fleet Management","R4000"
"Wolverhampton City Council","http://opendatacommunities.org/id/metropolitan-district-council/wolverhampton","704649","Jacobs U.K.Limited","B1019000-231-003","10,182.83","Construction and Conversion","130242154","20/02/2019","-","Decent Homes - Stock Improvements","C1100"
"Wolverhampton City Council","http://opendatacommunities.org/id/metropolitan-district-council/wolverhampton","704649","Jacobs U.K.Limited","B1019000-231-007","2,094.96","Services - Professional Fees","130242157","20/02/2019","Corporate Asset Management","Statutory Surveys","R4400"
"Wolverhampton City Council","http://opendatacommunities.org/id/metropolitan-district-council/wolverhampton","704649","Jacobs U.K.Limited","B1019000-231-004","505.68","Services - Professional Fees","130242155","27/02/2019","Facilities Management","Civic Centre","R4400"
"Wolverhampton City Council","http://opendatacommunities.org/id/metropolitan-district-council/wolverhampton","704649","Jacobs U.K.Limited","B1019000-231-002","12,882.31","Construction and Conversion","130242153","20/02/2019","-","Decent Homes - Stock Improvements","C1100"
"Wolverhampton City Council","http://opendatacommunities.org/id/metropolitan-district-council/wolverhampton","704649","Jacobs U.K.Limited","B1019000-231-011","3,058.53","Construction and Conversion","130242159","20/02/2019","-","Decent Homes - Stock Improvements","C1100"
"Wolverhampton City Council","http://opendatacommunities.org/id/metropolitan-district-council/wolverhampton","704649","Jacobs U.K.Limited","B1019000-230-001","2,022.72","Construction and Conversion","130238572","20/02/2019","-","Black Country Growth Deal � Cultural Programme","C1100"
"Wolverhampton City Council","http://opendatacommunities.org/id/metropolitan-district-council/wolverhampton","704649","Jacobs U.K.Limited","B1019000-231-005","2,094.96","Services - Professional Fees","130242331","20/02/2019","Housing Revenue Account","HRA General","R4400"
"Wolverhampton City Council","http://opendatacommunities.org/id/metropolitan-district-council/wolverhampton","704649","Jacobs U.K.Limited","B1019000-231-014","810.64","Services - Professional Fees","130242162","20/02/2019","Housing Revenue Account","HRA General","R4400"
"Wolverhampton City Council","http://opendatacommunities.org/id/metropolitan-district-council/wolverhampton","704649","Jacobs U.K.Limited","B1019000-231-006","1,697.64","Services - Professional Fees","130242156","20/02/2019","Corporate Asset Management","Statutory Surveys","R4400"
"Wolverhampton City Council","http://opendatacommunities.org/id/metropolitan-district-council/wolverhampton","704649","Jacobs U.K.Limited","B1019000-231-013","7,500.00","Construction and Conversion","130242161","20/02/2019","-","Integrated Transport","C1100"
"Wolverhampton City Council","http://opendatacommunities.org/id/metropolitan-district-council/wolverhampton","704649","Jacobs U.K.Limited","B1019000-231-010","4,319.75","Construction and Conversion","130242158","20/02/2019","-","Decent Homes - Stock Improvements","C1100"
"Wolverhampton City Council","http://opendatacommunities.org/id/metropolitan-district-council/wolverhampton","704649","Jacobs U.K.Limited","B1019000-231-001","1,625.40","Construction and Conversion","130242152","20/02/2019","-","Black Country Growth Deal � Cultural Programme","C1100"
"Wolverhampton City Council","http://opendatacommunities.org/id/metropolitan-district-council/wolverhampton","704649","Jacobs U.K.Limited","B1019000-231-012","12,390.42","Construction and Conversion","130242160","20/02/2019","-","Decent Homes - Stock Improvements","C1100"
"Wolverhampton City Council","http://opendatacommunities.org/id/metropolitan-district-council/wolverhampton","704657","James Lister & Sons Limited","0100/02884161","63.50","Protective Clothing","130242567","06/02/2019","Street Lighting","Street Lighting Maintenance","R4200"
"Wolverhampton City Council","http://opendatacommunities.org/id/metropolitan-district-council/wolverhampton","704657","James Lister & Sons Limited","0100/02884165","61.90","Protective Clothing","130242571","06/02/2019","Facilities Management","Civic Centre","R4200"
"Wolverhampton City Council","http://opendatacommunities.org/id/metropolitan-district-council/wolverhampton","704657","James Lister & Sons Limited","0100/02838654","63.74","Protective Clothing","130242335","06/02/2019","Catering","Education Catering - General Overheads","R4200"
"Wolverhampton City Council","http://opendatacommunities.org/id/metropolitan-district-council/wolverhampton","704657","James Lister & Sons Limited","0100/02885682","45.54","Protective Clothing","130242733","06/02/2019","Highways Maintenance","Patching","R4200"
"Wolverhampton City Council","http://opendatacommunities.org/id/metropolitan-district-council/wolverhampton","704657","James Lister & Sons Limited","0100/02884158","-35.85","Protective Clothing","130242564","06/02/2019","Public Protection","City Centre","R4200"
"Wolverhampton City Council","http://opendatacommunities.org/id/metropolitan-district-council/wolverhampton","704657","James Lister & Sons Limited","0100/02885677","27.50","Protective Clothing","130242728","06/02/2019","Environmental Maintenance","Parks - Ranger Service","R4200"
"Wolverhampton City Council","http://opendatacommunities.org/id/metropolitan-district-council/wolverhampton","704657","James Lister & Sons Limited","0100/02885678","37.50","Protective Clothing","130242729","06/02/2019","Highways Maintenance","Patching","R4200"
"Wolverhampton City Council","http://opendatacommunities.org/id/metropolitan-district-council/wolverhampton","704657","James Lister & Sons Limited","0100/02881987","15.35","Protective Clothing","130241861","01/02/2019","Environmental Maintenance","Parks - Ranger Service","R4200"
"Wolverhampton City Council","http://opendatacommunities.org/id/metropolitan-district-council/wolverhampton","704657","James Lister & Sons Limited","0100/02882004","17.76","Protective Clothing","130241878","01/02/2019","Parking Services","Car Parks Operational Staff","R4200"
"Wolverhampton City Council","http://opendatacommunities.org/id/metropolitan-district-council/wolverhampton","704657","James Lister & Sons Limited","0100/02885687","227.70","Protective Clothing","130242738","06/02/2019","Highways Maintenance","Patching","R4200"
"Wolverhampton City Council","http://opendatacommunities.org/id/metropolitan-district-council/wolverhampton","704657","James Lister & Sons Limited","0100/02884174","279.30","Protective Clothing","130242580","06/02/2019","Waste and Recycling Service","Waste Collection and Recycling Service - General","R4200"
"Wolverhampton City Council","http://opendatacommunities.org/id/metropolitan-district-council/wolverhampton","704657","James Lister & Sons Limited","0100/02885686","213.12","Protective Clothing","130242737","06/02/2019","Transportation","Passenger Transport - General","R4200"
"Wolverhampton City Council","http://opendatacommunities.org/id/metropolitan-district-council/wolverhampton","704657","James Lister & Sons Limited","0100/02884163","3,200.00","Protective Clothing","130242569","06/02/2019","Waste and Recycling Service","Waste Collection and Recycling Service - General","R4200"
"Wolverhampton City Council","http://opendatacommunities.org/id/metropolitan-district-council/wolverhampton","704657","James Lister & Sons Limited","0100/02881992","126.30","Protective Clothing","130241866","01/02/2019","Bereavement Services","Crematorium","R4200"
"Wolverhampton City Council","http://opendatacommunities.org/id/metropolitan-district-council/wolverhampton","704657","James Lister & Sons Limited","0100/02852410","52.10","Protective Clothing","130242337","01/02/2019","Environmental Maintenance","Graffiti Removal Team","R4200"
"Wolverhampton City Council","http://opendatacommunities.org/id/metropolitan-district-council/wolverhampton","704657","James Lister & Sons Limited","0100/02889755","65.00","Protective Clothing","130244447","22/02/2019","Public Protection","City Centre","R4200"
"Wolverhampton City Council","http://opendatacommunities.org/id/metropolitan-district-council/wolverhampton","704657","James Lister & Sons Limited","0100/02881999","88.80","Protective Clothing","130241873","01/02/2019","Parking Services","Car Parks Operational Staff","R4200"
"Wolverhampton City Council","http://opendatacommunities.org/id/metropolitan-district-council/wolverhampton","704657","James Lister & Sons Limited","0100/02889758","68.46","Protective Clothing","130244450","22/02/2019","Markets","Wolverhampton Indoor and Open Market","R4200"
"Wolverhampton City Council","http://opendatacommunities.org/id/metropolitan-district-council/wolverhampton","704657","James Lister & Sons Limited","0100/02889747","82.50","Protective Clothing","130244439","22/02/2019","Catering","Education Catering - General Overheads","R4200"
"Wolverhampton City Council","http://opendatacommunities.org/id/metropolitan-district-council/wolverhampton","704657","James Lister & Sons Limited","0100/02845578","732.00","Protective Clothing","130242336","01/02/2019","Environmental Maintenance","Graffiti Removal Team","R4200"
"Wolverhampton City Council","http://opendatacommunities.org/id/metropolitan-district-council/wolverhampton","704657","James Lister & Sons Limited","0100/02887564","18.75","Protective Clothing","130243807","15/02/2019","Bereavement Services","Bereavement services - Grounds maintenance","R4200"
"Wolverhampton City Council","http://opendatacommunities.org/id/metropolitan-district-council/wolverhampton","704657","James Lister & Sons Limited","0100/02889751","32.37","Protective Clothing","130244443","22/02/2019","Facilities Management","Civic Centre","R4200"
"Wolverhampton City Council","http://opendatacommunities.org/id/metropolitan-district-council/wolverhampton","704657","James Lister & Sons Limited","0100/02889746","18.54","Protective Clothing","130244438","22/02/2019","Facilities Management","Civic Centre","R4200"
"Wolverhampton City Council","http://opendatacommunities.org/id/metropolitan-district-council/wolverhampton","704657","James Lister & Sons Limited","0100/02889745","20.00","Protective Clothing","130244610","22/02/2019","Catering","Education Catering - General Overheads","R4200"
"Wolverhampton City Council","http://opendatacommunities.org/id/metropolitan-district-council/wolverhampton","704657","James Lister & Sons Limited","0100/02889759","247.50","Protective Clothing","130244451","22/02/2019","Waste and Recycling Service","Waste Man.Partnership-Domestic Coll�n","R4200"
"Wolverhampton City Council","http://opendatacommunities.org/id/metropolitan-district-council/wolverhampton","704657","James Lister & Sons Limited","0100/02889748","25.98","Protective Clothing","130244440","22/02/2019","Environmental Maintenance","Parks - Ranger Service","R4200"
"Wolverhampton City Council","http://opendatacommunities.org/id/metropolitan-district-council/wolverhampton","704657","James Lister & Sons Limited","0100/02887562","31.75","Protective Clothing","130243805","15/02/2019","Markets","Wholesale Market Facilities Management","R4200"
"Wolverhampton City Council","http://opendatacommunities.org/id/metropolitan-district-council/wolverhampton","704657","James Lister & Sons Limited","0100/02887568","29.25","Protective Clothing","130243811","15/02/2019","Markets","Bilston Market and Licensed Operations","R4200"
"Wolverhampton City Council","http://opendatacommunities.org/id/metropolitan-district-council/wolverhampton","704657","James Lister & Sons Limited","0100/02887568","12.75","Protective Clothing","130243811","15/02/2019","Markets","Wolverhampton Indoor and Open Market","R4200"
"Wolverhampton City Council","http://opendatacommunities.org/id/metropolitan-district-council/wolverhampton","704657","James Lister & Sons Limited","0100/02887565","35.85","Protective Clothing","130243808","15/02/2019","Public Protection","City Centre","R4200"
"Wolverhampton City Council","http://opendatacommunities.org/id/metropolitan-district-council/wolverhampton","704657","James Lister & Sons Limited","0100/02889750","49.90","Protective Clothing","130244442","22/02/2019","Highways Maintenance","Patching","R4200"
"Wolverhampton City Council","http://opendatacommunities.org/id/metropolitan-district-council/wolverhampton","704657","James Lister & Sons Limited","0100/02889749","17.05","Protective Clothing","130244441","22/02/2019","Highways Maintenance","Patching","R4200"
"Wolverhampton City Council","http://opendatacommunities.org/id/metropolitan-district-council/wolverhampton","704657","James Lister & Sons Limited","0100/02887575","10.95","Protective Clothing","130243818","15/02/2019","Facilities Management","Civic Centre","R4200"
"Wolverhampton City Council","http://opendatacommunities.org/id/metropolitan-district-council/wolverhampton","704657","James Lister & Sons Limited","0100/02887557","39.99","Protective Clothing","130243800","15/02/2019","Facilities Management","Civic Centre","R4200"
"Wolverhampton City Council","http://opendatacommunities.org/id/metropolitan-district-council/wolverhampton","704657","James Lister & Sons Limited","0100/02887572","216.00","Protective Clothing","130243815","15/02/2019","Transportation","Passenger Transport - General","R4200"
"Wolverhampton City Council","http://opendatacommunities.org/id/metropolitan-district-council/wolverhampton","704657","James Lister & Sons Limited","0100/02887567","57.72","Protective Clothing","130243810","15/02/2019","Waste and Recycling Service","Waste Man.Partnership-General","R4200"
"Wolverhampton City Council","http://opendatacommunities.org/id/metropolitan-district-council/wolverhampton","704657","James Lister & Sons Limited","0100/02884172","34.43","Protective Clothing","130242578","06/02/2019","Transportation","Passenger Transport - General","R4200"
"Wolverhampton City Council","http://opendatacommunities.org/id/metropolitan-district-council/wolverhampton","704657","James Lister & Sons Limited","0100/02887566","19.50","Protective Clothing","130243809","15/02/2019","Special Educational Needs","Special - Transport","R4200"
"Wolverhampton City Council","http://opendatacommunities.org/id/metropolitan-district-council/wolverhampton","704657","James Lister & Sons Limited","0100/02887573","65.00","Protective Clothing","130243816","15/02/2019","Public Protection","City Centre","R4200"
"Wolverhampton City Council","http://opendatacommunities.org/id/metropolitan-district-council/wolverhampton","704657","James Lister & Sons Limited","0100/02887563","56.18","Protective Clothing","130243806","15/02/2019","Older People Provider Services","ILS Stores","R4200"
"Wolverhampton City Council","http://opendatacommunities.org/id/metropolitan-district-council/wolverhampton","704657","James Lister & Sons Limited","0100/02887560","305.75","Protective Clothing","130243803","15/02/2019","Highways Maintenance","Patching","R4200"
"Wolverhampton City Council","http://opendatacommunities.org/id/metropolitan-district-council/wolverhampton","704657","James Lister & Sons Limited","0100/02887569","406.10","Protective Clothing","130243812","15/02/2019","Waste and Recycling Service","Waste Collection and Recycling Service - General","R4200"
"Wolverhampton City Council","http://opendatacommunities.org/id/metropolitan-district-council/wolverhampton","704657","James Lister & Sons Limited","0100/02887556","27.00","Protective Clothing","130243799","15/02/2019","Facilities Management","Civic Centre","R4200"
"Wolverhampton City Council","http://opendatacommunities.org/id/metropolitan-district-council/wolverhampton","704657","James Lister & Sons Limited","0100/02885683","27.50","Protective Clothing","130242734","06/02/2019","Facilities Management","Civic Centre","R4200"
"Wolverhampton City Council","http://opendatacommunities.org/id/metropolitan-district-council/wolverhampton","704657","James Lister & Sons Limited","0100/02884164","29.05","Protective Clothing","130242570","06/02/2019","Environmental Maintenance","Parks - Ranger Service","R4200"
"Wolverhampton City Council","http://opendatacommunities.org/id/metropolitan-district-council/wolverhampton","704657","James Lister & Sons Limited","0100/02884162","31.75","Protective Clothing","130242568","06/02/2019","ICTS","Strategic ICTS (ICT Service Budget)","R4200"
"Wolverhampton City Council","http://opendatacommunities.org/id/metropolitan-district-council/wolverhampton","704657","James Lister & Sons Limited","0100/02863772","18.12","Protective Clothing","130235142","06/02/2019","Waste and Recycling Service","Shaw Road Civic Amenity Site","R4200"
"Wolverhampton City Council","http://opendatacommunities.org/id/metropolitan-district-council/wolverhampton","704657","James Lister & Sons Limited","0100/02884166","17.65","Protective Clothing","130242572","06/02/2019","Markets","Bilston Market and Licensed Operations","R4200"
"Wolverhampton City Council","http://opendatacommunities.org/id/metropolitan-district-council/wolverhampton","704657","James Lister & Sons Limited","0100/02885679","31.32","Protective Clothing","130242730","06/02/2019","Highways Maintenance","Patching","R4200"
"Wolverhampton City Council","http://opendatacommunities.org/id/metropolitan-district-council/wolverhampton","704657","James Lister & Sons Limited","0100/02884159","26.58","Protective Clothing","130242565","06/02/2019","Transportation","Passenger Transport - General","R4200"
"Wolverhampton City Council","http://opendatacommunities.org/id/metropolitan-district-council/wolverhampton","704657","James Lister & Sons Limited","0100/02881983","31.00","Protective Clothing","130241857","13/02/2019","Bereavement Services","Bereavement services - Grounds maintenance","R4200"
"Wolverhampton City Council","http://opendatacommunities.org/id/metropolitan-district-council/wolverhampton","704657","James Lister & Sons Limited","0100/02884168","147.95","Protective Clothing","130242574","06/02/2019","Transportation","Travelwise","R4200"
"Wolverhampton City Council","http://opendatacommunities.org/id/metropolitan-district-council/wolverhampton","704657","James Lister & Sons Limited","0100/02884160","22.50","Protective Clothing","130242566","06/02/2019","Special Educational Needs","Special - Transport","R4200"
"Wolverhampton City Council","http://opendatacommunities.org/id/metropolitan-district-council/wolverhampton","704657","James Lister & Sons Limited","0100/02861690","220.00","Protective Clothing","130234460","06/02/2019","Waste and Recycling Service","Shaw Road Civic Amenity Site","R4200"
"Wolverhampton City Council","http://opendatacommunities.org/id/metropolitan-district-council/wolverhampton","704657","James Lister & Sons Limited","0100/02882000","178.00","Protective Clothing","130241874","06/02/2019","Public Health Business Management","Public Health Support Costs","R4200"
"Wolverhampton City Council","http://opendatacommunities.org/id/metropolitan-district-council/wolverhampton","704657","James Lister & Sons Limited","0100/02881995","193.52","Protective Clothing","130241869","06/02/2019","Older People Provider Services","ILS Stores","R4200"
"Wolverhampton City Council","http://opendatacommunities.org/id/metropolitan-district-council/wolverhampton","704657","James Lister & Sons Limited","0100/02884157","-35.85","Protective Clothing","130242563","06/02/2019","Public Protection","City Centre","R4200"
"Wolverhampton City Council","http://opendatacommunities.org/id/metropolitan-district-council/wolverhampton","704657","James Lister & Sons Limited","0100/02881981","65.00","Protective Clothing","130241855","13/02/2019","Public Protection","City Centre","R4200"
"Wolverhampton City Council","http://opendatacommunities.org/id/metropolitan-district-council/wolverhampton","704657","James Lister & Sons Limited","0100/02854686","721.00","Protective Clothing","130242339","06/02/2019","Waste and Recycling Service","Waste Collection and Recycling Service - General","R4200"
"Wolverhampton City Council","http://opendatacommunities.org/id/metropolitan-district-council/wolverhampton","704657","James Lister & Sons Limited","0100/02884169","377.30","Protective Clothing","130242575","06/02/2019","Highways Maintenance","Patching","R4200"
"Wolverhampton City Council","http://opendatacommunities.org/id/metropolitan-district-council/wolverhampton","704657","James Lister & Sons Limited","0100/02885681","83.49","Protective Clothing","130242732","06/02/2019","Maintenance Programme","Building Maintenance","R4200"
"Wolverhampton City Council","http://opendatacommunities.org/id/metropolitan-district-council/wolverhampton","704657","James Lister & Sons Limited","0100/02884175","31.82","Protective Clothing","130242581","06/02/2019","Public Protection","Environmental Protection","R4200"
"Wolverhampton City Council","http://opendatacommunities.org/id/metropolitan-district-council/wolverhampton","704657","James Lister & Sons Limited","0100/02884175","35.85","Protective Clothing","130242581","06/02/2019","Public Protection","City Centre","R4200"
"Wolverhampton City Council","http://opendatacommunities.org/id/metropolitan-district-council/wolverhampton","704657","James Lister & Sons Limited","0100/02884173","1,157.10","Protective Clothing","130242579","13/02/2019","Waste and Recycling Service","Waste Man.Partnership-Domestic Coll�n","R4200"
"Wolverhampton City Council","http://opendatacommunities.org/id/metropolitan-district-council/wolverhampton","704657","James Lister & Sons Limited","0100/02852428RE-ISSUE","1,618.75","Clothing / Uniforms","130242338","06/02/2019","Public Service Reform","Mayoral Expenses","R4201"
"Wolverhampton City Council","http://opendatacommunities.org/id/metropolitan-district-council/wolverhampton","704657","James Lister & Sons Limited","240/02879016","141.68","Equipment - Purchase","190557575","06/02/2019","Fleet Services","Fleet Management","R4000"
"Wolverhampton City Council","http://opendatacommunities.org/id/metropolitan-district-council/wolverhampton","704657","James Lister & Sons Limited","0100/02889752","2,228.40","Protective Clothing","130244444","27/02/2019","Environmental Maintenance","Ground Maintenance East","R4200"
"Wolverhampton City Council","http://opendatacommunities.org/id/metropolitan-district-council/wolverhampton","704657","James Lister & Sons Limited","0100/02889756","8.70","Materials","130244448","27/02/2019","Waste and Recycling Service","Waste Man.Partnership-Environmental Team","R4007"
"Wolverhampton City Council","http://opendatacommunities.org/id/metropolitan-district-council/wolverhampton","704657","James Lister & Sons Limited","0100/02885685","95.00","Protective Clothing","130242736","06/02/2019","Environmental Maintenance","Ground Maintenance East","R4200"
"Wolverhampton City Council","http://opendatacommunities.org/id/metropolitan-district-council/wolverhampton","704657","James Lister & Sons Limited","0100/02887561","30.36","Protective Clothing","130243804","20/02/2019","Operation & Maintenance of Existing Network","Condition Surveys","R4200"
"Wolverhampton City Council","http://opendatacommunities.org/id/metropolitan-district-council/wolverhampton","704657","James Lister & Sons Limited","0100/02889757","43.20","Protective Clothing","130244449","27/02/2019","Transportation","Passenger Transport - General","R4200"
"Wolverhampton City Council","http://opendatacommunities.org/id/metropolitan-district-council/wolverhampton","704657","James Lister & Sons Limited","240/02886971","155.82","Equipment - Purchase","190563457","20/02/2019","Fleet Services","Fleet Management","R4000"
"Wolverhampton City Council","http://opendatacommunities.org/id/metropolitan-district-council/wolverhampton","704657","James Lister & Sons Limited","0100/02885680","160.78","Protective Clothing","130242731","20/02/2019","Operation & Maintenance of Existing Network","Condition Surveys","R4200"
"Wolverhampton City Council","http://opendatacommunities.org/id/metropolitan-district-council/wolverhampton","704657","James Lister & Sons Limited","0100/02887558","2.54","Protective Clothing","130243801","20/02/2019","Operation & Maintenance of Existing Network","Condition Surveys","R4200"
"Wolverhampton City Council","http://opendatacommunities.org/id/metropolitan-district-council/wolverhampton","704657","James Lister & Sons Limited","0100/02887554","-30.36","Protective Clothing","130243797","20/02/2019","Operation & Maintenance of Existing Network","Condition Surveys","R4200"
"Wolverhampton City Council","http://opendatacommunities.org/id/metropolitan-district-council/wolverhampton","704657","James Lister & Sons Limited","0100/02887555","53.40","Protective Clothing","130243798","20/02/2019","Operation & Maintenance of Existing Network","Condition Surveys","R4200"
"Wolverhampton City Council","http://opendatacommunities.org/id/metropolitan-district-council/wolverhampton","704657","James Lister & Sons Limited","0100/02884167","275.06","Protective Clothing","130242573","08/02/2019","Cleaning","Cleaning of Buildings - General","R4200"
"Wolverhampton City Council","http://opendatacommunities.org/id/metropolitan-district-council/wolverhampton","704657","James Lister & Sons Limited","0100/02885684","2,061.30","Protective Clothing","130242735","08/02/2019","Environmental Maintenance","Ground Maintenance East","R4200"
"Wolverhampton City Council","http://opendatacommunities.org/id/metropolitan-district-council/wolverhampton","704657","James Lister & Sons Limited","240/02883447","74.55","Equipment - Purchase","190563456","20/02/2019","Fleet Services","Fleet Management","R4000"
"Wolverhampton City Council","http://opendatacommunities.org/id/metropolitan-district-council/wolverhampton","704657","James Lister & Sons Limited","0100/02881991","35.85","Protective Clothing","130241865","08/02/2019","Public Protection","City Centre","R4200"
"Wolverhampton City Council","http://opendatacommunities.org/id/metropolitan-district-council/wolverhampton","704659","James Wilkes Limited","17/0584/DFG","4,668.30","Grants paid out to other organisations","190561488","13/02/2019","-","Disabled Facilities Grants","C5011"
"Wolverhampton City Council","http://opendatacommunities.org/id/metropolitan-district-council/wolverhampton","704659","James Wilkes Limited","17/0408/DFG","5,257.65","Grants paid out to other organisations","190556902","01/02/2019","-","Disabled Facilities Grants","C5011"
"Wolverhampton City Council","http://opendatacommunities.org/id/metropolitan-district-council/wolverhampton","704675","JCDECAUX UK Limited","SF/I107253","407.00","Marketing \ Non-staff advertising","130243451","13/02/2019","Leisure Services","WV Active Marketing","R4317"
"Wolverhampton City Council","http://opendatacommunities.org/id/metropolitan-district-council/wolverhampton","704675","JCDECAUX UK Limited","SF/I109697","385.00","Marketing \ Non-staff advertising","130243452","20/02/2019","Corporate Communications","Communications & Marketing - General","R4317"
"Wolverhampton City Council","http://opendatacommunities.org/id/metropolitan-district-council/wolverhampton","704675","JCDECAUX UK Limited","SF/I107245","385.00","Marketing \ Non-staff advertising","130243450","13/02/2019","Markets","Wolverhampton Indoor and Open Market","R4317"
"Wolverhampton City Council","http://opendatacommunities.org/id/metropolitan-district-council/wolverhampton","704703","Jim�S Transfleet","310119","1,605.50","Client Transport","130242739","06/02/2019","Special Educational Needs","Special - Transport","R3042"
"Wolverhampton City Council","http://opendatacommunities.org/id/metropolitan-district-council/wolverhampton","704703","Jim�S Transfleet","310119A","1,547.17","Client Transport","130242740","06/02/2019","Special Educational Needs","Special - Transport","R3042"
"Wolverhampton City Council","http://opendatacommunities.org/id/metropolitan-district-council/wolverhampton","704722","Johal Dairies Limited","6525122018","17.10","Provisions (Not for resale)","130243200","15/02/2019","Leisure Services","WV Active Catering - Central","R4101"
"Wolverhampton City Council","http://opendatacommunities.org/id/metropolitan-district-council/wolverhampton","704722","Johal Dairies Limited","5620122018","835.04","Provisions (Resale)","130242582","01/02/2019","Catering","Civic Centre Catering","R4102"
"Wolverhampton City Council","http://opendatacommunities.org/id/metropolitan-district-council/wolverhampton","704722","Johal Dairies Limited","W1/3122018","1,716.96","School Milk","130242583","01/02/2019","Catering","Education Catering - General Overheads","R4104"
"Wolverhampton City Council","http://opendatacommunities.org/id/metropolitan-district-council/wolverhampton","704722","Johal Dairies Limited","WKIT122018","5,845.43","Provisions (Resale)","130242451","01/02/2019","Catering","Education Catering - General Overheads","R4102"
"Wolverhampton City Council","http://opendatacommunities.org/id/metropolitan-district-council/wolverhampton","704722","Johal Dairies Limited","1270175","94.44","Provisions (Not for resale)","130244989","22/02/2019","Older People Provider Services","Bradley Lodge Resource Centre","R4101"
"Wolverhampton City Council","http://opendatacommunities.org/id/metropolitan-district-council/wolverhampton","704722","Johal Dairies Limited","1257996","40.92","Provisions (Not for resale)","130244972","22/02/2019","Older People Provider Services","Blakenhall Resource Centre","R4101"
"Wolverhampton City Council","http://opendatacommunities.org/id/metropolitan-district-council/wolverhampton","704722","Johal Dairies Limited","1270302","29.73","Provisions (Not for resale)","130244994","22/02/2019","Learning Disability Provider","Duke Street Bungalows","R4101"
"Wolverhampton City Council","http://opendatacommunities.org/id/metropolitan-district-council/wolverhampton","704722","Johal Dairies Limited","1260892","51.72","Provisions (Not for resale)","130244975","27/02/2019","Visitor Economy","Bantock - Tea Rooms","R4101"
"Wolverhampton City Council","http://opendatacommunities.org/id/metropolitan-district-council/wolverhampton","704722","Johal Dairies Limited","1270189","46.04","Provisions (Not for resale)","130244991","27/02/2019","Visitor Economy","Bantock - Tea Rooms","R4101"
"Wolverhampton City Council","http://opendatacommunities.org/id/metropolitan-district-council/wolverhampton","704722","Johal Dairies Limited","1270826","13.87","Provisions (Not for resale)","130244996","27/02/2019","Older People Provider Services","Blakenhall Resource Centre","R4101"
"Wolverhampton City Council","http://opendatacommunities.org/id/metropolitan-district-council/wolverhampton","704722","Johal Dairies Limited","1260890","10.86","Provisions (Not for resale)","130244974","27/02/2019","Visitor Economy","Art Gallery Tea Room","R4101"
"Wolverhampton City Council","http://opendatacommunities.org/id/metropolitan-district-council/wolverhampton","704722","Johal Dairies Limited","1270187","10.86","Provisions (Not for resale)","130244990","27/02/2019","Visitor Economy","Art Gallery Tea Room","R4101"
"Wolverhampton City Council","http://opendatacommunities.org/id/metropolitan-district-council/wolverhampton","704722","Johal Dairies Limited","1261006","33.09","Provisions (Not for resale)","130244978","27/02/2019","Learning Disability Provider","Duke Street Bungalows","R4101"
"Wolverhampton City Council","http://opendatacommunities.org/id/metropolitan-district-council/wolverhampton","704722","Johal Dairies Limited","1257975","31.29","Provisions (Not for resale)","130244971","27/02/2019","Learning Disability Provider","Duke Street Bungalows","R4101"
"Wolverhampton City Council","http://opendatacommunities.org/id/metropolitan-district-council/wolverhampton","704722","Johal Dairies Limited","1265640","24.68","Provisions (Not for resale)","130244985","27/02/2019","Learning Disability Provider","Duke Street Bungalows","R4101"
"Wolverhampton City Council","http://opendatacommunities.org/id/metropolitan-district-council/wolverhampton","704722","Johal Dairies Limited","1270301","24.68","Provisions (Not for resale)","130244993","27/02/2019","Learning Disability Provider","Duke Street Bungalows","R4101"
"Wolverhampton City Council","http://opendatacommunities.org/id/metropolitan-district-council/wolverhampton","704722","Johal Dairies Limited","1265523","32.21","Provisions (Not for resale)","130244982","27/02/2019","Visitor Economy","Art Gallery Tea Room","R4101"
"Wolverhampton City Council","http://opendatacommunities.org/id/metropolitan-district-council/wolverhampton","704722","Johal Dairies Limited","1270300","20.34","Provisions (Not for resale)","130244992","27/02/2019","Learning Disability Provider","Duke Street Bungalows","R4101"
"Wolverhampton City Council","http://opendatacommunities.org/id/metropolitan-district-council/wolverhampton","704722","Johal Dairies Limited","1257973","20.34","Provisions (Not for resale)","130244969","27/02/2019","Learning Disability Provider","Duke Street Bungalows","R4101"
"Wolverhampton City Council","http://opendatacommunities.org/id/metropolitan-district-council/wolverhampton","704722","Johal Dairies Limited","1265639","20.34","Provisions (Not for resale)","130244984","27/02/2019","Learning Disability Provider","Duke Street Bungalows","R4101"
"Wolverhampton City Council","http://opendatacommunities.org/id/metropolitan-district-council/wolverhampton","704722","Johal Dairies Limited","1265641","29.73","Provisions (Not for resale)","130244986","27/02/2019","Learning Disability Provider","Duke Street Bungalows","R4101"
"Wolverhampton City Council","http://opendatacommunities.org/id/metropolitan-district-council/wolverhampton","704722","Johal Dairies Limited","1257946","13.94","Provisions (Not for resale)","130244967","27/02/2019","Visitor Economy","Art Gallery Tea Room","R4101"
"Wolverhampton City Council","http://opendatacommunities.org/id/metropolitan-district-council/wolverhampton","704722","Johal Dairies Limited","1261005","23.93","Provisions (Not for resale)","130244977","27/02/2019","Learning Disability Provider","Duke Street Bungalows","R4101"
"Wolverhampton City Council","http://opendatacommunities.org/id/metropolitan-district-council/wolverhampton","704722","Johal Dairies Limited","1261004","16.23","Provisions (Not for resale)","130244976","27/02/2019","Learning Disability Provider","Duke Street Bungalows","R4101"
"Wolverhampton City Council","http://opendatacommunities.org/id/metropolitan-district-council/wolverhampton","704722","Johal Dairies Limited","1257974","23.74","Provisions (Not for resale)","130244970","27/02/2019","Learning Disability Provider","Duke Street Bungalows","R4101"
"Wolverhampton City Council","http://opendatacommunities.org/id/metropolitan-district-council/wolverhampton","704722","Johal Dairies Limited","W1/3012019","2,190.04","School Milk","130244037","27/02/2019","Catering","Education Catering - General Overheads","R4104"
"Wolverhampton City Council","http://opendatacommunities.org/id/metropolitan-district-council/wolverhampton","704722","Johal Dairies Limited","1261527","9.89","Provisions (Not for resale)","130244980","27/02/2019","Older People Provider Services","Blakenhall Resource Centre","R4101"
"Wolverhampton City Council","http://opendatacommunities.org/id/metropolitan-district-council/wolverhampton","704722","Johal Dairies Limited","1251010","113.21","Provisions (Not for resale)","130240676","27/02/2019","Older People Provider Services","Bradley Lodge Resource Centre","R4101"
"Wolverhampton City Council","http://opendatacommunities.org/id/metropolitan-district-council/wolverhampton","704722","Johal Dairies Limited","1266164","41.00","Provisions (Not for resale)","130244988","27/02/2019","Older People Provider Services","Blakenhall Resource Centre","R4101"
"Wolverhampton City Council","http://opendatacommunities.org/id/metropolitan-district-council/wolverhampton","704722","Johal Dairies Limited","1260878","104.42","Provisions (Not for resale)","130244973","27/02/2019","Older People Provider Services","Bradley Lodge Resource Centre","R4101"
"Wolverhampton City Council","http://opendatacommunities.org/id/metropolitan-district-council/wolverhampton","704722","Johal Dairies Limited","1257948","53.50","Provisions (Not for resale)","130244968","27/02/2019","Visitor Economy","Bantock - Tea Rooms","R4101"
"Wolverhampton City Council","http://opendatacommunities.org/id/metropolitan-district-council/wolverhampton","704722","Johal Dairies Limited","1246330","93.71","Provisions (Not for resale)","130240669","27/02/2019","Older People Provider Services","Bradley Lodge Resource Centre","R4101"
"Wolverhampton City Council","http://opendatacommunities.org/id/metropolitan-district-council/wolverhampton","704722","Johal Dairies Limited","1257942","100.75","Provisions (Not for resale)","130244966","27/02/2019","Older People Provider Services","Bradley Lodge Resource Centre","R4101"
"Wolverhampton City Council","http://opendatacommunities.org/id/metropolitan-district-council/wolverhampton","704722","Johal Dairies Limited","1265511","85.64","Provisions (Not for resale)","130244981","27/02/2019","Older People Provider Services","Bradley Lodge Resource Centre","R4101"
"Wolverhampton City Council","http://opendatacommunities.org/id/metropolitan-district-council/wolverhampton","704722","Johal Dairies Limited","1255254","62.42","Provisions (Not for resale)","130240683","27/02/2019","Older People Provider Services","Bradley Lodge Resource Centre","R4101"
"Wolverhampton City Council","http://opendatacommunities.org/id/metropolitan-district-council/wolverhampton","704722","Johal Dairies Limited","1265526","60.52","Provisions (Not for resale)","130244983","27/02/2019","Visitor Economy","Bantock - Tea Rooms","R4101"
"Wolverhampton City Council","http://opendatacommunities.org/id/metropolitan-district-council/wolverhampton","704722","Johal Dairies Limited","5466122018","202.40","Provisions (Not for resale)","130243198","15/02/2019","Leisure Services","WV Active Catering","R4101"
"Wolverhampton City Council","http://opendatacommunities.org/id/metropolitan-district-council/wolverhampton","704722","Johal Dairies Limited","5935122018","268.75","Provisions (Not for resale)","130243199","15/02/2019","Leisure Services","Bert Williams Leisure Centre Caf�","R4101"
"Wolverhampton City Council","http://opendatacommunities.org/id/metropolitan-district-council/wolverhampton","704748","Johnston Sweepers Limited","61701128","55.88","Equipment - Purchase","190557578","06/02/2019","Fleet Services","Fleet Management","R4000"
"Wolverhampton City Council","http://opendatacommunities.org/id/metropolitan-district-council/wolverhampton","704748","Johnston Sweepers Limited","61698735","37.08","Equipment - Purchase","190557576","06/02/2019","Fleet Services","Fleet Management","R4000"
"Wolverhampton City Council","http://opendatacommunities.org/id/metropolitan-district-council/wolverhampton","704748","Johnston Sweepers Limited","61698735","70.25","Equipment - Purchase","190557576","06/02/2019","Fleet Services","Fleet Management","R4000"
"Wolverhampton City Council","http://opendatacommunities.org/id/metropolitan-district-council/wolverhampton","704748","Johnston Sweepers Limited","61698735","54.42","Equipment - Purchase","190557576","06/02/2019","Fleet Services","Fleet Management","R4000"
"Wolverhampton City Council","http://opendatacommunities.org/id/metropolitan-district-council/wolverhampton","704748","Johnston Sweepers Limited","61701128","24.25","Equipment - Purchase","190557578","06/02/2019","Fleet Services","Fleet Management","R4000"
"Wolverhampton City Council","http://opendatacommunities.org/id/metropolitan-district-council/wolverhampton","704748","Johnston Sweepers Limited","61699728","60.06","Equipment - Purchase","190557577","06/02/2019","Fleet Services","Fleet Management","R4000"
"Wolverhampton City Council","http://opendatacommunities.org/id/metropolitan-district-council/wolverhampton","704748","Johnston Sweepers Limited","61700556","13.56","Equipment - Purchase","190556529","01/02/2019","Fleet Services","Fleet Management","R4000"
"Wolverhampton City Council","http://opendatacommunities.org/id/metropolitan-district-council/wolverhampton","704748","Johnston Sweepers Limited","61700556","17.74","Equipment - Purchase","190556529","01/02/2019","Fleet Services","Fleet Management","R4000"
"Wolverhampton City Council","http://opendatacommunities.org/id/metropolitan-district-council/wolverhampton","704748","Johnston Sweepers Limited","61700556","14.11","Equipment - Purchase","190556529","01/02/2019","Fleet Services","Fleet Management","R4000"
"Wolverhampton City Council","http://opendatacommunities.org/id/metropolitan-district-council/wolverhampton","704748","Johnston Sweepers Limited","61700556","17.86","Equipment - Purchase","190556529","01/02/2019","Fleet Services","Fleet Management","R4000"
"Wolverhampton City Council","http://opendatacommunities.org/id/metropolitan-district-council/wolverhampton","704748","Johnston Sweepers Limited","61700556","39.51","Equipment - Purchase","190556529","01/02/2019","Fleet Services","Fleet Management","R4000"
"Wolverhampton City Council","http://opendatacommunities.org/id/metropolitan-district-council/wolverhampton","704748","Johnston Sweepers Limited","61700556","21.75","Equipment - Purchase","190556529","01/02/2019","Fleet Services","Fleet Management","R4000"
"Wolverhampton City Council","http://opendatacommunities.org/id/metropolitan-district-council/wolverhampton","704748","Johnston Sweepers Limited","61700556","24.70","Equipment - Purchase","190556529","01/02/2019","Fleet Services","Fleet Management","R4000"
"Wolverhampton City Council","http://opendatacommunities.org/id/metropolitan-district-council/wolverhampton","704748","Johnston Sweepers Limited","61687277","125.98","Equipment - Purchase","190562051","15/02/2019","Fleet Services","Fleet Management","R4000"
"Wolverhampton City Council","http://opendatacommunities.org/id/metropolitan-district-council/wolverhampton","704748","Johnston Sweepers Limited","61708763","382.99","Equipment - Purchase","190567394","27/02/2019","Fleet Services","Fleet Management","R4000"
"Wolverhampton City Council","http://opendatacommunities.org/id/metropolitan-district-council/wolverhampton","704748","Johnston Sweepers Limited","61703068","58.54","Equipment - Purchase","190567390","27/02/2019","Fleet Services","Fleet Management","R4000"
"Wolverhampton City Council","http://opendatacommunities.org/id/metropolitan-district-council/wolverhampton","704748","Johnston Sweepers Limited","61705311","695.12","Equipment - Purchase","190567392","27/02/2019","Fleet Services","Fleet Management","R4000"
"Wolverhampton City Council","http://opendatacommunities.org/id/metropolitan-district-council/wolverhampton","704748","Johnston Sweepers Limited","61705312","90.58","Equipment - Purchase","190567393","27/02/2019","Fleet Services","Fleet Management","R4000"
"Wolverhampton City Council","http://opendatacommunities.org/id/metropolitan-district-council/wolverhampton","704748","Johnston Sweepers Limited","61704559","25.27","Equipment - Purchase","190567391","27/02/2019","Fleet Services","Fleet Management","R4000"
"Wolverhampton City Council","http://opendatacommunities.org/id/metropolitan-district-council/wolverhampton","704748","Johnston Sweepers Limited","61699729","76.16","Equipment - Purchase","190563458","20/02/2019","Fleet Services","Fleet Management","R4000"
"Wolverhampton City Council","http://opendatacommunities.org/id/metropolitan-district-council/wolverhampton","704748","Johnston Sweepers Limited","61702146","30.01","Equipment - Purchase","190563460","20/02/2019","Fleet Services","Fleet Management","R4000"
"Wolverhampton City Council","http://opendatacommunities.org/id/metropolitan-district-council/wolverhampton","704748","Johnston Sweepers Limited","61701129","121.84","Equipment - Purchase","190563459","20/02/2019","Fleet Services","Fleet Management","R4000"
"Wolverhampton City Council","http://opendatacommunities.org/id/metropolitan-district-council/wolverhampton","704748","Johnston Sweepers Limited","61704920","91.03","Equipment - Purchase","190563461","20/02/2019","Fleet Services","Fleet Management","R4000"
"Wolverhampton City Council","http://opendatacommunities.org/id/metropolitan-district-council/wolverhampton","704748","Johnston Sweepers Limited","61704920","1.28","Equipment - Purchase","190563461","20/02/2019","Fleet Services","Fleet Management","R4000"
"Wolverhampton City Council","http://opendatacommunities.org/id/metropolitan-district-council/wolverhampton","704754","Jones Skips (Wolverhampton) Limited","60038","5,037.12","TPP - Waste Disposal","130245605","27/02/2019","Environmental Maintenance","Ground Maintenance East","R5003"
"Wolverhampton City Council","http://opendatacommunities.org/id/metropolitan-district-council/wolverhampton","704754","Jones Skips (Wolverhampton) Limited","60971","175.00","TPP - Waste Disposal","130244997","22/02/2019","Strengthening Families","CP Area 3 - Graiseley","R5003"
"Wolverhampton City Council","http://opendatacommunities.org/id/metropolitan-district-council/wolverhampton","704754","Jones Skips (Wolverhampton) Limited","61051","200.00","Materials","130244452","20/02/2019","Street Lighting","Street Lighting Maintenance","R4007"
"Wolverhampton City Council","http://opendatacommunities.org/id/metropolitan-district-council/wolverhampton","704754","Jones Skips (Wolverhampton) Limited","59686","175.00","TPP - Waste Disposal","130241994","06/02/2019","Children & Young People In Care","Childrens with Disabilities Team","R5003"
"Wolverhampton City Council","http://opendatacommunities.org/id/metropolitan-district-council/wolverhampton","704754","Jones Skips (Wolverhampton) Limited","58568","200.00","Materials","130239861","01/02/2019","Street Lighting","Street Lighting Maintenance","R4007"
"Wolverhampton City Council","http://opendatacommunities.org/id/metropolitan-district-council/wolverhampton","704785","Just Projector Lamps","INT242984","105.91","Equipment - Purchase","130243030","08/02/2019","Adult Education","ICT Services","R4000"
"Wolverhampton City Council","http://opendatacommunities.org/id/metropolitan-district-council/wolverhampton","704802","K Thornton","201951","50.00","Services - Supplies and Services to service users","130244998","22/02/2019","Strengthening Families","EI Area 7 - Low Hill","R4408"
"Wolverhampton City Council","http://opendatacommunities.org/id/metropolitan-district-council/wolverhampton","704832","Kays Medical Limited","0000261809","9.95","Comms - Postage","130242585","27/02/2019","Human Resources","Occupational Health","R4503"
"Wolverhampton City Council","http://opendatacommunities.org/id/metropolitan-district-council/wolverhampton","704832","Kays Medical Limited","0000261809","10.19","Materials","130242585","27/02/2019","Human Resources","Occupational Health","R4007"
"Wolverhampton City Council","http://opendatacommunities.org/id/metropolitan-district-council/wolverhampton","704832","Kays Medical Limited","0000257273","504.36","Materials","130242584","13/02/2019","Human Resources","Occupational Health","R4007"
"Wolverhampton City Council","http://opendatacommunities.org/id/metropolitan-district-council/wolverhampton","704842","Keith Carrier & Son","0031362","50.00","R&M - Departmental planned (external)","130242586","06/02/2019","Maintenance Programme","Centralised R&M","R2001"
"Wolverhampton City Council","http://opendatacommunities.org/id/metropolitan-district-council/wolverhampton","704842","Keith Carrier & Son","0031363","430.00","Services - Security","130242587","06/02/2019","Maintenance Programme","Civic Centre Repairs & Maintenance","R4405"
"Wolverhampton City Council","http://opendatacommunities.org/id/metropolitan-district-council/wolverhampton","704842","Keith Carrier & Son","0031381","36.18","R&M - Departmental planned (external)","130244999","27/02/2019","Facilities Management","i10 Facilities Management","R2001"
"Wolverhampton City Council","http://opendatacommunities.org/id/metropolitan-district-council/wolverhampton","704842","Keith Carrier & Son","0031381","50.00","R&M - Departmental planned (external)","130244999","27/02/2019","Facilities Management","i10 Facilities Management","R2001"
"Wolverhampton City Council","http://opendatacommunities.org/id/metropolitan-district-council/wolverhampton","704842","Keith Carrier & Son","0031384","150.00","Services - Professional Fees","130245606","27/02/2019","Public Protection","Trading Standards","R4400"
"Wolverhampton City Council","http://opendatacommunities.org/id/metropolitan-district-council/wolverhampton","704842","Keith Carrier & Son","0031384","100.00","Services - Professional Fees","130245606","27/02/2019","Public Protection","Trading Standards","R4400"
"Wolverhampton City Council","http://opendatacommunities.org/id/metropolitan-district-council/wolverhampton","704842","Keith Carrier & Son","0031383","50.00","R&M - Departmental planned (external)","130245297","27/02/2019","Facilities Management","Civic Centre","R2001"
"Wolverhampton City Council","http://opendatacommunities.org/id/metropolitan-district-council/wolverhampton","704842","Keith Carrier & Son","0031360","160.00","R&M - Departmental planned (external)","130244206","20/02/2019","Maintenance Programme","Centralised R&M","R2001"
"Wolverhampton City Council","http://opendatacommunities.org/id/metropolitan-district-council/wolverhampton","704842","Keith Carrier & Son","0031364","106.53","R&M - Departmental planned (external)","130242588","06/02/2019","Maintenance Programme","Civic Centre Repairs & Maintenance","R2001"
"Wolverhampton City Council","http://opendatacommunities.org/id/metropolitan-district-council/wolverhampton","704842","Keith Carrier & Son","0031369","130.00","R&M - Departmental planned (external)","130243201","08/02/2019","Maintenance Programme","Centralised R&M","R2001"
"Wolverhampton City Council","http://opendatacommunities.org/id/metropolitan-district-council/wolverhampton","704855","Kenton Research Limited","OP/I026384","2,280.00","Computing - Internet","130242453","06/02/2019","ICTS","Strategic ICTS (ICT Service Budget)","R4537"
"Wolverhampton City Council","http://opendatacommunities.org/id/metropolitan-district-council/wolverhampton","704855","Kenton Research Limited","OP/I026417","420.00","Computing - Internet","130244043","15/02/2019","ICTS","Strategic ICTS (ICT Service Budget)","R4537"
"Wolverhampton City Council","http://opendatacommunities.org/id/metropolitan-district-council/wolverhampton","704855","Kenton Research Limited","OP/I026410","420.00","Computing - Internet","130244040","15/02/2019","ICTS","Strategic ICTS (ICT Service Budget)","R4537"
"Wolverhampton City Council","http://opendatacommunities.org/id/metropolitan-district-council/wolverhampton","704855","Kenton Research Limited","OP/I026419","440.00","Computing - Internet","130243827","15/02/2019","ICTS","Strategic ICTS (ICT Service Budget)","R4537"
"Wolverhampton City Council","http://opendatacommunities.org/id/metropolitan-district-council/wolverhampton","704855","Kenton Research Limited","OP/I026388","2,900.00","Computing - Internet","130242589","08/02/2019","ICTS","Strategic ICTS (ICT Service Budget)","R4537"
"Wolverhampton City Council","http://opendatacommunities.org/id/metropolitan-district-council/wolverhampton","704855","Kenton Research Limited","OP/I026389","2,900.00","Computing - Internet","130242590","08/02/2019","ICTS","Strategic ICTS (ICT Service Budget)","R4537"
"Wolverhampton City Council","http://opendatacommunities.org/id/metropolitan-district-council/wolverhampton","704855","Kenton Research Limited","OP/I026387","2,900.00","Computing - Internet","130242454","08/02/2019","ICTS","Strategic ICTS (ICT Service Budget)","R4537"
"Wolverhampton City Council","http://opendatacommunities.org/id/metropolitan-district-council/wolverhampton","704855","Kenton Research Limited","OP/I026413","720.00","Computing - Internet","130244042","15/02/2019","ICTS","Strategic ICTS (ICT Service Budget)","R4537"
"Wolverhampton City Council","http://opendatacommunities.org/id/metropolitan-district-council/wolverhampton","704855","Kenton Research Limited","OP/I026411","782.50","Computing - Internet","130244041","15/02/2019","ICTS","Strategic ICTS (ICT Service Budget)","R4537"
"Wolverhampton City Council","http://opendatacommunities.org/id/metropolitan-district-council/wolverhampton","704855","Kenton Research Limited","OP/I026421","782.50","Computing - Internet","130244044","15/02/2019","ICTS","Strategic ICTS (ICT Service Budget)","R4537"
"Wolverhampton City Council","http://opendatacommunities.org/id/metropolitan-district-council/wolverhampton","704855","Kenton Research Limited","OP/I026423","672.50","Computing - Internet","130243829","13/02/2019","ICTS","Strategic ICTS (ICT Service Budget)","R4537"
"Wolverhampton City Council","http://opendatacommunities.org/id/metropolitan-district-council/wolverhampton","704855","Kenton Research Limited","OP/I026416","720.00","Computing - Internet","130243825","13/02/2019","ICTS","Strategic ICTS (ICT Service Budget)","R4537"
"Wolverhampton City Council","http://opendatacommunities.org/id/metropolitan-district-council/wolverhampton","704855","Kenton Research Limited","OP/I026415","500.00","Computing - Internet","130243824","13/02/2019","ICTS","Strategic ICTS (ICT Service Budget)","R4537"
"Wolverhampton City Council","http://opendatacommunities.org/id/metropolitan-district-council/wolverhampton","704855","Kenton Research Limited","OP/I026426","787.50","Computing - Internet","130243830","13/02/2019","ICTS","Strategic ICTS (ICT Service Budget)","R4537"
"Wolverhampton City Council","http://opendatacommunities.org/id/metropolitan-district-council/wolverhampton","704855","Kenton Research Limited","OP/I026418","782.50","Computing - Internet","130243826","13/02/2019","ICTS","Strategic ICTS (ICT Service Budget)","R4537"
"Wolverhampton City Council","http://opendatacommunities.org/id/metropolitan-district-council/wolverhampton","704855","Kenton Research Limited","OP/I026406","796.00","Computing - Internet","130243819","13/02/2019","ICTS","Strategic ICTS (ICT Service Budget)","R4537"
"Wolverhampton City Council","http://opendatacommunities.org/id/metropolitan-district-council/wolverhampton","704855","Kenton Research Limited","OP/I026420","1,262.50","Computing - Internet","130243828","13/02/2019","ICTS","Strategic ICTS (ICT Service Budget)","R4537"
"Wolverhampton City Council","http://opendatacommunities.org/id/metropolitan-district-council/wolverhampton","704855","Kenton Research Limited","OP/I026414","481.25","Computing - Internet","130243823","13/02/2019","ICTS","Strategic ICTS (ICT Service Budget)","R4537"
"Wolverhampton City Council","http://opendatacommunities.org/id/metropolitan-district-council/wolverhampton","704855","Kenton Research Limited","OP/I026266","440.00","Computing - Internet","130240217","01/02/2019","ICTS","Strategic ICTS (ICT Service Budget)","R4537"
"Wolverhampton City Council","http://opendatacommunities.org/id/metropolitan-district-council/wolverhampton","704855","Kenton Research Limited","OP/I026256","900.00","Computing - Internet","130240692","01/02/2019","ICTS","Strategic ICTS (ICT Service Budget)","R4537"
"Wolverhampton City Council","http://opendatacommunities.org/id/metropolitan-district-council/wolverhampton","704855","Kenton Research Limited","OP/I026258","412.50","Computing - Internet","130240693","01/02/2019","ICTS","Strategic ICTS (ICT Service Budget)","R4537"
"Wolverhampton City Council","http://opendatacommunities.org/id/metropolitan-district-council/wolverhampton","704855","Kenton Research Limited","OP/I026261","517.50","Computing - Internet","130240696","01/02/2019","ICTS","Strategic ICTS (ICT Service Budget)","R4537"
"Wolverhampton City Council","http://opendatacommunities.org/id/metropolitan-district-council/wolverhampton","704855","Kenton Research Limited","OP/I026259","492.50","Computing - Internet","130240694","01/02/2019","ICTS","Strategic ICTS (ICT Service Budget)","R4537"
"Wolverhampton City Council","http://opendatacommunities.org/id/metropolitan-district-council/wolverhampton","704855","Kenton Research Limited","OP/I026263","720.00","Computing - Internet","130240698","01/02/2019","ICTS","Strategic ICTS (ICT Service Budget)","R4537"
"Wolverhampton City Council","http://opendatacommunities.org/id/metropolitan-district-council/wolverhampton","704855","Kenton Research Limited","OP/I026264","1,518.00","Computing - Internet","130240699","01/02/2019","ICTS","Strategic ICTS (ICT Service Budget)","R4537"
"Wolverhampton City Council","http://opendatacommunities.org/id/metropolitan-district-council/wolverhampton","704855","Kenton Research Limited","OP/I026260","1,440.00","Computing - Internet","130240695","01/02/2019","ICTS","Strategic ICTS (ICT Service Budget)","R4537"
"Wolverhampton City Council","http://opendatacommunities.org/id/metropolitan-district-council/wolverhampton","704855","Kenton Research Limited","OP/I026257","720.00","Computing - Internet","130241123","01/02/2019","ICTS","Strategic ICTS (ICT Service Budget)","R4537"
"Wolverhampton City Council","http://opendatacommunities.org/id/metropolitan-district-council/wolverhampton","704855","Kenton Research Limited","OP/I026408","420.00","Computing - Internet","130243820","13/02/2019","ICTS","Strategic ICTS (ICT Service Budget)","R4537"
"Wolverhampton City Council","http://opendatacommunities.org/id/metropolitan-district-council/wolverhampton","704855","Kenton Research Limited","OP/I026409","1,568.75","Computing - Internet","130243821","13/02/2019","ICTS","Strategic ICTS (ICT Service Budget)","R4537"
"Wolverhampton City Council","http://opendatacommunities.org/id/metropolitan-district-council/wolverhampton","704855","Kenton Research Limited","OP/I026412","7,425.50","Computing - Internet","130243822","13/02/2019","ICTS","Strategic ICTS (ICT Service Budget)","R4537"
"Wolverhampton City Council","http://opendatacommunities.org/id/metropolitan-district-council/wolverhampton","704855","Kenton Research Limited","OP/I026294","7,619.97","Computing - Internet","130239708","01/02/2019","ICTS","Strategic ICTS (ICT Service Budget)","R4537"
"Wolverhampton City Council","http://opendatacommunities.org/id/metropolitan-district-council/wolverhampton","704855","Kenton Research Limited","OP/I026262","4,522.50","Computing - Internet","130240697","01/02/2019","ICTS","Strategic ICTS (ICT Service Budget)","R4537"
"Wolverhampton City Council","http://opendatacommunities.org/id/metropolitan-district-council/wolverhampton","704855","Kenton Research Limited","OP/I026405","720.00","Computing - Internet","130244038","15/02/2019","ICTS","Strategic ICTS (ICT Service Budget)","R4537"
"Wolverhampton City Council","http://opendatacommunities.org/id/metropolitan-district-council/wolverhampton","704855","Kenton Research Limited","OP/I026407","720.00","Computing - Internet","130244039","15/02/2019","ICTS","Strategic ICTS (ICT Service Budget)","R4537"
"Wolverhampton City Council","http://opendatacommunities.org/id/metropolitan-district-council/wolverhampton","704901","Kingfisher Environmental Servs Limited","1901530","76.67","Services - Professional Fees","130243202","13/02/2019","Leisure Services","Bert Williams Leisure Centre","R4400"
"Wolverhampton City Council","http://opendatacommunities.org/id/metropolitan-district-council/wolverhampton","704901","Kingfisher Environmental Servs Limited","1901531","55.87","R&M - Departmental planned (external)","130243203","15/02/2019","Leisure Services","Central Baths","R2001"
"Wolverhampton City Council","http://opendatacommunities.org/id/metropolitan-district-council/wolverhampton","704901","Kingfisher Environmental Servs Limited","1812612","55.87","R&M - Departmental planned (external)","130239863","08/02/2019","Leisure Services","Central Baths","R2001"
"Wolverhampton City Council","http://opendatacommunities.org/id/metropolitan-district-council/wolverhampton","704931","Konica Minolta Bus.Solutions(UK)Limited.","1141524073","4,360.36","Photocopier Operating Lease","130242163","01/02/2019","Adult Education","ICT Services","R4304"
"Wolverhampton City Council","http://opendatacommunities.org/id/metropolitan-district-council/wolverhampton","704931","Konica Minolta Bus.Solutions(UK)Limited.","1141524073","0.01","Photocopier Operating Lease","130242163","01/02/2019","Adult Education","ICT Services","R4304"
"Wolverhampton City Council","http://opendatacommunities.org/id/metropolitan-district-council/wolverhampton","704931","Konica Minolta Bus.Solutions(UK)Limited.","1141930917","3,378.81","Photocopier Operating Lease","130241244","06/02/2019","Adult Education","ICT Services","R4304"
"Wolverhampton City Council","http://opendatacommunities.org/id/metropolitan-district-council/wolverhampton","704935","Krcs Group PLC","41758","305.00","Equipment - Purchase","130242741","27/02/2019","Special Educational Needs","SEN Sensory Inclusion","R4000"
"Wolverhampton City Council","http://opendatacommunities.org/id/metropolitan-district-council/wolverhampton","704935","Krcs Group PLC","41758","305.00","Equipment - Purchase","130242741","27/02/2019","Special Educational Needs","SEN Sensory Inclusion","R4000"
"Wolverhampton City Council","http://opendatacommunities.org/id/metropolitan-district-council/wolverhampton","704935","Krcs Group PLC","41758","305.00","Equipment - Purchase","130242741","27/02/2019","Special Educational Needs","SEN Sensory Inclusion","R4000"
"Wolverhampton City Council","http://opendatacommunities.org/id/metropolitan-district-council/wolverhampton","704935","Krcs Group PLC","41753","200.00","Equipment - Purchase","130242591","27/02/2019","Special Educational Needs","SEN Sensory Inclusion","R4000"
"Wolverhampton City Council","http://opendatacommunities.org/id/metropolitan-district-council/wolverhampton","704935","Krcs Group PLC","41672","100.00","Equipment - Purchase","130241881","20/02/2019","Special Educational Needs","SEN Sensory Inclusion","R4000"
"Wolverhampton City Council","http://opendatacommunities.org/id/metropolitan-district-council/wolverhampton","704935","Krcs Group PLC","41672","7.00","Equipment - Purchase","130241881","20/02/2019","Special Educational Needs","SEN Sensory Inclusion","R4000"
"Wolverhampton City Council","http://opendatacommunities.org/id/metropolitan-district-council/wolverhampton","704936","Kroy (Europe) Limited","IV235526","440.00","Signage and Labels","130240700","01/02/2019","Licensing","Licensing - Private Hire Vehicles","R4009"
"Wolverhampton City Council","http://opendatacommunities.org/id/metropolitan-district-council/wolverhampton","704936","Kroy (Europe) Limited","IV235554","660.00","Signage and Labels","130240503","06/02/2019","Licensing","Licensing - Private Hire Vehicles","R4009"
"Wolverhampton City Council","http://opendatacommunities.org/id/metropolitan-district-council/wolverhampton","704965","L.T. & R. Vowles Limited","804835","1,219.65","Materials","130241245","06/02/2019","Bereavement Services","Cemeteries","R4007"
"Wolverhampton City Council","http://opendatacommunities.org/id/metropolitan-district-council/wolverhampton","704995","Langham:A Div�N Of Gordon Ellis & Co","SI-1163745","432.60","Equipment - Purchase","130244045","22/02/2019","Older People Provider Services","ILS Stores","R4000"
"Wolverhampton City Council","http://opendatacommunities.org/id/metropolitan-district-council/wolverhampton","705094","LG Futures Limited","3002019","4,750.00","Services - Professional Fees","130245299","27/02/2019","Strategic Finance","Strategic Finance","R4400"
"Wolverhampton City Council","http://opendatacommunities.org/id/metropolitan-district-council/wolverhampton","705112","Light House Limited","1819-130","30.00","Room Hire","130241995","20/02/2019","Director of Education","SENDIASS","R2201"
"Wolverhampton City Council","http://opendatacommunities.org/id/metropolitan-district-council/wolverhampton","705183","Lodge Tyre Co.Limited","PE005721","25.00","Equipment - Purchase","190557598","06/02/2019","Fleet Services","Fleet Management","R4000"
"Wolverhampton City Council","http://opendatacommunities.org/id/metropolitan-district-council/wolverhampton","705183","Lodge Tyre Co.Limited","PE005721","50.00","Equipment - Purchase","190557598","06/02/2019","Fleet Services","Fleet Management","R4000"
"Wolverhampton City Council","http://opendatacommunities.org/id/metropolitan-district-council/wolverhampton","705183","Lodge Tyre Co.Limited","PE005721","25.00","Equipment - Purchase","190557598","06/02/2019","Fleet Services","Fleet Management","R4000"
"Wolverhampton City Council","http://opendatacommunities.org/id/metropolitan-district-council/wolverhampton","705183","Lodge Tyre Co.Limited","PE005696","30.00","Vehicle Maintenance - Spare Parts","190562061","15/02/2019","Fleet Services","Fleet Management","R3009"
"Wolverhampton City Council","http://opendatacommunities.org/id/metropolitan-district-council/wolverhampton","705183","Lodge Tyre Co.Limited","PE005696","30.00","Vehicle Maintenance - Spare Parts","190562061","15/02/2019","Fleet Services","Fleet Management","R3009"
"Wolverhampton City Council","http://opendatacommunities.org/id/metropolitan-district-council/wolverhampton","705183","Lodge Tyre Co.Limited","PE005696","20.00","Vehicle Maintenance - Spare Parts","190562061","15/02/2019","Fleet Services","Fleet Management","R3009"
"Wolverhampton City Council","http://opendatacommunities.org/id/metropolitan-district-council/wolverhampton","705183","Lodge Tyre Co.Limited","15R01210","-44.00","Vehicle Maintenance - Spare Parts","190562041","15/02/2019","Fleet Services","Fleet Management","R3009"
"Wolverhampton City Council","http://opendatacommunities.org/id/metropolitan-district-council/wolverhampton","705183","Lodge Tyre Co.Limited","15R01200","-119.87","Vehicle Maintenance - Spare Parts","190562040","15/02/2019","Fleet Services","Fleet Management","R3009"
"Wolverhampton City Council","http://opendatacommunities.org/id/metropolitan-district-council/wolverhampton","705183","Lodge Tyre Co.Limited","PE005696","15.00","Vehicle Maintenance - Spare Parts","190562061","15/02/2019","Fleet Services","Fleet Management","R3009"
"Wolverhampton City Council","http://opendatacommunities.org/id/metropolitan-district-council/wolverhampton","705183","Lodge Tyre Co.Limited","PE005696","130.00","Vehicle Maintenance - Spare Parts","190562061","15/02/2019","Fleet Services","Fleet Management","R3009"
"Wolverhampton City Council","http://opendatacommunities.org/id/metropolitan-district-council/wolverhampton","705183","Lodge Tyre Co.Limited","PE005696","56.00","Vehicle Maintenance - Spare Parts","190562061","15/02/2019","Fleet Services","Fleet Management","R3009"
"Wolverhampton City Council","http://opendatacommunities.org/id/metropolitan-district-council/wolverhampton","705183","Lodge Tyre Co.Limited","PE005696","358.00","Vehicle Maintenance - Spare Parts","190562061","15/02/2019","Fleet Services","Fleet Management","R3009"
"Wolverhampton City Council","http://opendatacommunities.org/id/metropolitan-district-council/wolverhampton","705183","Lodge Tyre Co.Limited","PE005696","15.00","Vehicle Maintenance - Spare Parts","190562061","15/02/2019","Fleet Services","Fleet Management","R3009"
"Wolverhampton City Council","http://opendatacommunities.org/id/metropolitan-district-council/wolverhampton","705183","Lodge Tyre Co.Limited","PE005696","65.00","Vehicle Maintenance - Spare Parts","190562061","15/02/2019","Fleet Services","Fleet Management","R3009"
"Wolverhampton City Council","http://opendatacommunities.org/id/metropolitan-district-council/wolverhampton","705183","Lodge Tyre Co.Limited","PE005696","58.00","Vehicle Maintenance - Spare Parts","190562061","15/02/2019","Fleet Services","Fleet Management","R3009"
"Wolverhampton City Council","http://opendatacommunities.org/id/metropolitan-district-council/wolverhampton","705183","Lodge Tyre Co.Limited","PE005696","66.00","Vehicle Maintenance - Spare Parts","190562061","15/02/2019","Fleet Services","Fleet Management","R3009"
"Wolverhampton City Council","http://opendatacommunities.org/id/metropolitan-district-council/wolverhampton","705183","Lodge Tyre Co.Limited","PE005696","66.00","Vehicle Maintenance - Spare Parts","190562061","15/02/2019","Fleet Services","Fleet Management","R3009"
"Wolverhampton City Council","http://opendatacommunities.org/id/metropolitan-district-council/wolverhampton","705183","Lodge Tyre Co.Limited","PE005696","66.00","Vehicle Maintenance - Spare Parts","190562061","15/02/2019","Fleet Services","Fleet Management","R3009"
"Wolverhampton City Council","http://opendatacommunities.org/id/metropolitan-district-council/wolverhampton","705183","Lodge Tyre Co.Limited","15R01211","-20.50","Vehicle Maintenance - Spare Parts","190562042","15/02/2019","Fleet Services","Fleet Management","R3009"
"Wolverhampton City Council","http://opendatacommunities.org/id/metropolitan-district-council/wolverhampton","705183","Lodge Tyre Co.Limited","PE005696","60.00","Vehicle Maintenance - Spare Parts","190562061","15/02/2019","Fleet Services","Fleet Management","R3009"
"Wolverhampton City Council","http://opendatacommunities.org/id/metropolitan-district-council/wolverhampton","705183","Lodge Tyre Co.Limited","PE005696","130.00","Vehicle Maintenance - Spare Parts","190562061","15/02/2019","Fleet Services","Fleet Management","R3009"
"Wolverhampton City Council","http://opendatacommunities.org/id/metropolitan-district-council/wolverhampton","705183","Lodge Tyre Co.Limited","PE005696","60.00","Vehicle Maintenance - Spare Parts","190562061","15/02/2019","Fleet Services","Fleet Management","R3009"
"Wolverhampton City Council","http://opendatacommunities.org/id/metropolitan-district-council/wolverhampton","705183","Lodge Tyre Co.Limited","PE005696","60.00","Vehicle Maintenance - Spare Parts","190562061","15/02/2019","Fleet Services","Fleet Management","R3009"
"Wolverhampton City Council","http://opendatacommunities.org/id/metropolitan-district-council/wolverhampton","705183","Lodge Tyre Co.Limited","PE005696","85.00","Vehicle Maintenance - Spare Parts","190562061","15/02/2019","Fleet Services","Fleet Management","R3009"
"Wolverhampton City Council","http://opendatacommunities.org/id/metropolitan-district-council/wolverhampton","705183","Lodge Tyre Co.Limited","PE005696","119.87","Vehicle Maintenance - Spare Parts","190562061","15/02/2019","Fleet Services","Fleet Management","R3009"
"Wolverhampton City Council","http://opendatacommunities.org/id/metropolitan-district-council/wolverhampton","705183","Lodge Tyre Co.Limited","PE005696","38.75","Vehicle Maintenance - Spare Parts","190562061","15/02/2019","Fleet Services","Fleet Management","R3009"
"Wolverhampton City Council","http://opendatacommunities.org/id/metropolitan-district-council/wolverhampton","705183","Lodge Tyre Co.Limited","PE005696","407.52","Vehicle Maintenance - Spare Parts","190562061","15/02/2019","Fleet Services","Fleet Management","R3009"
"Wolverhampton City Council","http://opendatacommunities.org/id/metropolitan-district-council/wolverhampton","705183","Lodge Tyre Co.Limited","PE005696","21.75","Vehicle Maintenance - Spare Parts","190562061","15/02/2019","Fleet Services","Fleet Management","R3009"
"Wolverhampton City Council","http://opendatacommunities.org/id/metropolitan-district-council/wolverhampton","705183","Lodge Tyre Co.Limited","PE005696","60.00","Vehicle Maintenance - Spare Parts","190562061","15/02/2019","Fleet Services","Fleet Management","R3009"
"Wolverhampton City Council","http://opendatacommunities.org/id/metropolitan-district-council/wolverhampton","705183","Lodge Tyre Co.Limited","PE005696","38.75","Vehicle Maintenance - Spare Parts","190562061","15/02/2019","Fleet Services","Fleet Management","R3009"
"Wolverhampton City Council","http://opendatacommunities.org/id/metropolitan-district-council/wolverhampton","705183","Lodge Tyre Co.Limited","PE005696","30.00","Vehicle Maintenance - Spare Parts","190562061","15/02/2019","Fleet Services","Fleet Management","R3009"
"Wolverhampton City Council","http://opendatacommunities.org/id/metropolitan-district-council/wolverhampton","705183","Lodge Tyre Co.Limited","PE005696","25.00","Vehicle Maintenance - Spare Parts","190562061","15/02/2019","Fleet Services","Fleet Management","R3009"
"Wolverhampton City Council","http://opendatacommunities.org/id/metropolitan-district-council/wolverhampton","705183","Lodge Tyre Co.Limited","PE005696","38.75","Vehicle Maintenance - Spare Parts","190562061","15/02/2019","Fleet Services","Fleet Management","R3009"
"Wolverhampton City Council","http://opendatacommunities.org/id/metropolitan-district-council/wolverhampton","705183","Lodge Tyre Co.Limited","PE005696","60.00","Vehicle Maintenance - Spare Parts","190562061","15/02/2019","Fleet Services","Fleet Management","R3009"
"Wolverhampton City Council","http://opendatacommunities.org/id/metropolitan-district-council/wolverhampton","705183","Lodge Tyre Co.Limited","PE005696","210.00","Vehicle Maintenance - Spare Parts","190562061","15/02/2019","Fleet Services","Fleet Management","R3009"
"Wolverhampton City Council","http://opendatacommunities.org/id/metropolitan-district-council/wolverhampton","705183","Lodge Tyre Co.Limited","PE005696","132.50","Vehicle Maintenance - Spare Parts","190562061","15/02/2019","Fleet Services","Fleet Management","R3009"
"Wolverhampton City Council","http://opendatacommunities.org/id/metropolitan-district-council/wolverhampton","705183","Lodge Tyre Co.Limited","PE005696","60.00","Vehicle Maintenance - Spare Parts","190562061","15/02/2019","Fleet Services","Fleet Management","R3009"
"Wolverhampton City Council","http://opendatacommunities.org/id/metropolitan-district-council/wolverhampton","705183","Lodge Tyre Co.Limited","PE005696","66.00","Vehicle Maintenance - Spare Parts","190562061","15/02/2019","Fleet Services","Fleet Management","R3009"
"Wolverhampton City Council","http://opendatacommunities.org/id/metropolitan-district-council/wolverhampton","705183","Lodge Tyre Co.Limited","PE005696","30.00","Vehicle Maintenance - Spare Parts","190562061","15/02/2019","Fleet Services","Fleet Management","R3009"
"Wolverhampton City Council","http://opendatacommunities.org/id/metropolitan-district-council/wolverhampton","705183","Lodge Tyre Co.Limited","PE005696","15.00","Vehicle Maintenance - Spare Parts","190562061","15/02/2019","Fleet Services","Fleet Management","R3009"
"Wolverhampton City Council","http://opendatacommunities.org/id/metropolitan-district-council/wolverhampton","705183","Lodge Tyre Co.Limited","PE005696","120.00","Vehicle Maintenance - Spare Parts","190562061","15/02/2019","Fleet Services","Fleet Management","R3009"
"Wolverhampton City Council","http://opendatacommunities.org/id/metropolitan-district-council/wolverhampton","705183","Lodge Tyre Co.Limited","PE005696","15.00","Vehicle Maintenance - Spare Parts","190562061","15/02/2019","Fleet Services","Fleet Management","R3009"
"Wolverhampton City Council","http://opendatacommunities.org/id/metropolitan-district-council/wolverhampton","705183","Lodge Tyre Co.Limited","PE005696","50.00","Vehicle Maintenance - Spare Parts","190562061","15/02/2019","Fleet Services","Fleet Management","R3009"
"Wolverhampton City Council","http://opendatacommunities.org/id/metropolitan-district-council/wolverhampton","705183","Lodge Tyre Co.Limited","PE005696","50.00","Vehicle Maintenance - Spare Parts","190562061","15/02/2019","Fleet Services","Fleet Management","R3009"
"Wolverhampton City Council","http://opendatacommunities.org/id/metropolitan-district-council/wolverhampton","705183","Lodge Tyre Co.Limited","PE005696","390.00","Vehicle Maintenance - Spare Parts","190562061","15/02/2019","Fleet Services","Fleet Management","R3009"
"Wolverhampton City Council","http://opendatacommunities.org/id/metropolitan-district-council/wolverhampton","705183","Lodge Tyre Co.Limited","PE005696","66.00","Vehicle Maintenance - Spare Parts","190562061","15/02/2019","Fleet Services","Fleet Management","R3009"
"Wolverhampton City Council","http://opendatacommunities.org/id/metropolitan-district-council/wolverhampton","705183","Lodge Tyre Co.Limited","PE005696","60.00","Vehicle Maintenance - Spare Parts","190562061","15/02/2019","Fleet Services","Fleet Management","R3009"
"Wolverhampton City Council","http://opendatacommunities.org/id/metropolitan-district-council/wolverhampton","705183","Lodge Tyre Co.Limited","PE005696","215.00","Vehicle Maintenance - Spare Parts","190562061","15/02/2019","Fleet Services","Fleet Management","R3009"
"Wolverhampton City Council","http://opendatacommunities.org/id/metropolitan-district-council/wolverhampton","705183","Lodge Tyre Co.Limited","PE005696","116.00","Vehicle Maintenance - Spare Parts","190562061","15/02/2019","Fleet Services","Fleet Management","R3009"
"Wolverhampton City Council","http://opendatacommunities.org/id/metropolitan-district-council/wolverhampton","705183","Lodge Tyre Co.Limited","PE005696","120.00","Vehicle Maintenance - Spare Parts","190562061","15/02/2019","Fleet Services","Fleet Management","R3009"
"Wolverhampton City Council","http://opendatacommunities.org/id/metropolitan-district-council/wolverhampton","705183","Lodge Tyre Co.Limited","PE005696","210.00","Vehicle Maintenance - Spare Parts","190562061","15/02/2019","Fleet Services","Fleet Management","R3009"
"Wolverhampton City Council","http://opendatacommunities.org/id/metropolitan-district-council/wolverhampton","705183","Lodge Tyre Co.Limited","PE005696","38.75","Vehicle Maintenance - Spare Parts","190562061","15/02/2019","Fleet Services","Fleet Management","R3009"
"Wolverhampton City Council","http://opendatacommunities.org/id/metropolitan-district-council/wolverhampton","705183","Lodge Tyre Co.Limited","PE005696","15.00","Vehicle Maintenance - Spare Parts","190562061","15/02/2019","Fleet Services","Fleet Management","R3009"
"Wolverhampton City Council","http://opendatacommunities.org/id/metropolitan-district-council/wolverhampton","705183","Lodge Tyre Co.Limited","PE005696","30.00","Vehicle Maintenance - Spare Parts","190562061","15/02/2019","Fleet Services","Fleet Management","R3009"
"Wolverhampton City Council","http://opendatacommunities.org/id/metropolitan-district-council/wolverhampton","705183","Lodge Tyre Co.Limited","PE005696","30.00","Vehicle Maintenance - Spare Parts","190562061","15/02/2019","Fleet Services","Fleet Management","R3009"
"Wolverhampton City Council","http://opendatacommunities.org/id/metropolitan-district-council/wolverhampton","705183","Lodge Tyre Co.Limited","PE005696","30.00","Vehicle Maintenance - Spare Parts","190562061","15/02/2019","Fleet Services","Fleet Management","R3009"
"Wolverhampton City Council","http://opendatacommunities.org/id/metropolitan-district-council/wolverhampton","705183","Lodge Tyre Co.Limited","PE005696","10.00","Vehicle Maintenance - Spare Parts","190562061","15/02/2019","Fleet Services","Fleet Management","R3009"
"Wolverhampton City Council","http://opendatacommunities.org/id/metropolitan-district-council/wolverhampton","705183","Lodge Tyre Co.Limited","PE005696","390.00","Vehicle Maintenance - Spare Parts","190562061","15/02/2019","Fleet Services","Fleet Management","R3009"
"Wolverhampton City Council","http://opendatacommunities.org/id/metropolitan-district-council/wolverhampton","705183","Lodge Tyre Co.Limited","PE005696","30.00","Vehicle Maintenance - Spare Parts","190562061","15/02/2019","Fleet Services","Fleet Management","R3009"
"Wolverhampton City Council","http://opendatacommunities.org/id/metropolitan-district-council/wolverhampton","705183","Lodge Tyre Co.Limited","PE005696","119.87","Vehicle Maintenance - Spare Parts","190562061","15/02/2019","Fleet Services","Fleet Management","R3009"
"Wolverhampton City Council","http://opendatacommunities.org/id/metropolitan-district-council/wolverhampton","705183","Lodge Tyre Co.Limited","PE005696","38.75","Vehicle Maintenance - Spare Parts","190562061","15/02/2019","Fleet Services","Fleet Management","R3009"
"Wolverhampton City Council","http://opendatacommunities.org/id/metropolitan-district-council/wolverhampton","705183","Lodge Tyre Co.Limited","PE005696","59.75","Vehicle Maintenance - Spare Parts","190562061","15/02/2019","Fleet Services","Fleet Management","R3009"
"Wolverhampton City Council","http://opendatacommunities.org/id/metropolitan-district-council/wolverhampton","705183","Lodge Tyre Co.Limited","PE005696","21.75","Vehicle Maintenance - Spare Parts","190562061","15/02/2019","Fleet Services","Fleet Management","R3009"
"Wolverhampton City Council","http://opendatacommunities.org/id/metropolitan-district-council/wolverhampton","705183","Lodge Tyre Co.Limited","PE005696","58.00","Vehicle Maintenance - Spare Parts","190562061","15/02/2019","Fleet Services","Fleet Management","R3009"
"Wolverhampton City Council","http://opendatacommunities.org/id/metropolitan-district-council/wolverhampton","705183","Lodge Tyre Co.Limited","PE005696","71.00","Vehicle Maintenance - Spare Parts","190562061","15/02/2019","Fleet Services","Fleet Management","R3009"
"Wolverhampton City Council","http://opendatacommunities.org/id/metropolitan-district-council/wolverhampton","705183","Lodge Tyre Co.Limited","PE005696","15.00","Vehicle Maintenance - Spare Parts","190562061","15/02/2019","Fleet Services","Fleet Management","R3009"
"Wolverhampton City Council","http://opendatacommunities.org/id/metropolitan-district-council/wolverhampton","705183","Lodge Tyre Co.Limited","PE005696","54.00","Vehicle Maintenance - Spare Parts","190562061","15/02/2019","Fleet Services","Fleet Management","R3009"
"Wolverhampton City Council","http://opendatacommunities.org/id/metropolitan-district-council/wolverhampton","705183","Lodge Tyre Co.Limited","PE005696","3.00","Vehicle Maintenance - Spare Parts","190562061","15/02/2019","Fleet Services","Fleet Management","R3009"
"Wolverhampton City Council","http://opendatacommunities.org/id/metropolitan-district-council/wolverhampton","705183","Lodge Tyre Co.Limited","PE005696","54.00","Vehicle Maintenance - Spare Parts","190562061","15/02/2019","Fleet Services","Fleet Management","R3009"
"Wolverhampton City Council","http://opendatacommunities.org/id/metropolitan-district-council/wolverhampton","705183","Lodge Tyre Co.Limited","PE005696","50.00","Vehicle Maintenance - Spare Parts","190562061","15/02/2019","Fleet Services","Fleet Management","R3009"
"Wolverhampton City Council","http://opendatacommunities.org/id/metropolitan-district-council/wolverhampton","705183","Lodge Tyre Co.Limited","PE005696","57.50","Vehicle Maintenance - Spare Parts","190562061","15/02/2019","Fleet Services","Fleet Management","R3009"
"Wolverhampton City Council","http://opendatacommunities.org/id/metropolitan-district-council/wolverhampton","705183","Lodge Tyre Co.Limited","PE005696","30.00","Vehicle Maintenance - Spare Parts","190562061","15/02/2019","Fleet Services","Fleet Management","R3009"
"Wolverhampton City Council","http://opendatacommunities.org/id/metropolitan-district-council/wolverhampton","705183","Lodge Tyre Co.Limited","PE005696","215.00","Vehicle Maintenance - Spare Parts","190562061","15/02/2019","Fleet Services","Fleet Management","R3009"
"Wolverhampton City Council","http://opendatacommunities.org/id/metropolitan-district-council/wolverhampton","705183","Lodge Tyre Co.Limited","PE005696","50.00","Vehicle Maintenance - Spare Parts","190562061","15/02/2019","Fleet Services","Fleet Management","R3009"
"Wolverhampton City Council","http://opendatacommunities.org/id/metropolitan-district-council/wolverhampton","705183","Lodge Tyre Co.Limited","PE005696","3.00","Vehicle Maintenance - Spare Parts","190562061","15/02/2019","Fleet Services","Fleet Management","R3009"
"Wolverhampton City Council","http://opendatacommunities.org/id/metropolitan-district-council/wolverhampton","705183","Lodge Tyre Co.Limited","PE005696","60.00","Vehicle Maintenance - Spare Parts","190562061","15/02/2019","Fleet Services","Fleet Management","R3009"
"Wolverhampton City Council","http://opendatacommunities.org/id/metropolitan-district-council/wolverhampton","705183","Lodge Tyre Co.Limited","PE005696","15.00","Vehicle Maintenance - Spare Parts","190562061","15/02/2019","Fleet Services","Fleet Management","R3009"
"Wolverhampton City Council","http://opendatacommunities.org/id/metropolitan-district-council/wolverhampton","705183","Lodge Tyre Co.Limited","PE005696","240.00","Vehicle Maintenance - Spare Parts","190562061","15/02/2019","Fleet Services","Fleet Management","R3009"
"Wolverhampton City Council","http://opendatacommunities.org/id/metropolitan-district-council/wolverhampton","705183","Lodge Tyre Co.Limited","PE005696","54.00","Vehicle Maintenance - Spare Parts","190562061","15/02/2019","Fleet Services","Fleet Management","R3009"
"Wolverhampton City Council","http://opendatacommunities.org/id/metropolitan-district-council/wolverhampton","705183","Lodge Tyre Co.Limited","PE005696","15.00","Vehicle Maintenance - Spare Parts","190562061","15/02/2019","Fleet Services","Fleet Management","R3009"
"Wolverhampton City Council","http://opendatacommunities.org/id/metropolitan-district-council/wolverhampton","705186","London Advice Serv All. LASA","38170/PW","850.00","Subscriptions","130245300","27/02/2019","Community Financial Support","Macmillan Welfare Rights Service","R4701"
"Wolverhampton City Council","http://opendatacommunities.org/id/metropolitan-district-council/wolverhampton","705206","Loughborough University","P19833920190208","6,103.74","TPP - Accommodation","190560492","27/02/2019","Children & Young People In Care","LAC Transitions Team","R5603"
"Wolverhampton City Council","http://opendatacommunities.org/id/metropolitan-district-council/wolverhampton","705225","Luscombe Cider Limited","0000154938","247.92","Provisions (Resale)","130218131","22/02/2019","Visitor Economy","Art Gallery Tea Room","R4102"
"Wolverhampton City Council","http://opendatacommunities.org/id/metropolitan-district-council/wolverhampton","705249","M Dixon","MJD211118","1,800.00","Services - Professional Fees","130244453","27/02/2019","Visitor Economy","Bantock House Museum-Exhibitions","R4400"
"Wolverhampton City Council","http://opendatacommunities.org/id/metropolitan-district-council/wolverhampton","705274","M.K.G. (Food Products) Limited","129346","219.96","Provisions (Resale)","130240703","06/02/2019","Visitor Economy","Bantock - Tea Rooms","R4102"
"Wolverhampton City Council","http://opendatacommunities.org/id/metropolitan-district-council/wolverhampton","705274","M.K.G. (Food Products) Limited","128974","107.69","Provisions (Resale)","130240702","06/02/2019","Visitor Economy","Bantock - Tea Rooms","R4102"
"Wolverhampton City Council","http://opendatacommunities.org/id/metropolitan-district-council/wolverhampton","705276","M3 Communications Limited","20936","110.00","Marketing \ Non-staff advertising","130242742","27/02/2019","Visitor Economy","Literature Festival -  ACE NPO WAG","R4317"
"Wolverhampton City Council","http://opendatacommunities.org/id/metropolitan-district-council/wolverhampton","705281","Machine Mart Limited","1032840","14.99","Equipment - Purchase","190563441","20/02/2019","Fleet Services","Fleet Management","R4000"
"Wolverhampton City Council","http://opendatacommunities.org/id/metropolitan-district-council/wolverhampton","705281","Machine Mart Limited","1031889","14.99","Equipment - Purchase","190563440","20/02/2019","Fleet Services","Fleet Management","R4000"
"Wolverhampton City Council","http://opendatacommunities.org/id/metropolitan-district-council/wolverhampton","705303","Mail Solutions UK Limited","377179","84.32","Printing","130244207","20/02/2019","ICTS","Document Centre - General","R4300"
"Wolverhampton City Council","http://opendatacommunities.org/id/metropolitan-district-council/wolverhampton","705303","Mail Solutions UK Limited","377438","567.50","Printing","130244613","22/02/2019","ICTS","Document Centre - General","R4300"
"Wolverhampton City Council","http://opendatacommunities.org/id/metropolitan-district-council/wolverhampton","705303","Mail Solutions UK Limited","376471","86.88","Printing","130242455","06/02/2019","ICTS","Document Centre - General","R4300"
"Wolverhampton City Council","http://opendatacommunities.org/id/metropolitan-district-council/wolverhampton","705303","Mail Solutions UK Limited","376472","69.45","Printing","130242456","06/02/2019","ICTS","Document Centre - General","R4300"
"Wolverhampton City Council","http://opendatacommunities.org/id/metropolitan-district-council/wolverhampton","705303","Mail Solutions UK Limited","376749","767.50","Printing","130243615","13/02/2019","ICTS","Document Centre - General","R4300"
"Wolverhampton City Council","http://opendatacommunities.org/id/metropolitan-district-council/wolverhampton","705367","Marstons PLC","98478581","1,087.31","Provisions (Resale)","130242164","20/02/2019","Visitor Economy","The Little Civic","R4102"
"Wolverhampton City Council","http://opendatacommunities.org/id/metropolitan-district-council/wolverhampton","705367","Marstons PLC","98466650","777.23","Provisions (Resale)","130241373","13/02/2019","Visitor Economy","The Little Civic","R4102"
"Wolverhampton City Council","http://opendatacommunities.org/id/metropolitan-district-council/wolverhampton","705367","Marstons PLC","98454725","257.54","Provisions (Resale)","130240706","06/02/2019","Visitor Economy","The Little Civic","R4102"
"Wolverhampton City Council","http://opendatacommunities.org/id/metropolitan-district-council/wolverhampton","705367","Marstons PLC","98493435","659.81","Provisions (Resale)","130243206","27/02/2019","Visitor Economy","The Little Civic","R4102"
"Wolverhampton City Council","http://opendatacommunities.org/id/metropolitan-district-council/wolverhampton","705430","Medipost (UK) Limited","215517","29.85","Equipment - Purchase","130240392","06/02/2019","Learning Disability Provider","Learning Disabilities Management","R4000"
"Wolverhampton City Council","http://opendatacommunities.org/id/metropolitan-district-council/wolverhampton","705430","Medipost (UK) Limited","215517","5.00","Equipment - Purchase","130240392","06/02/2019","Learning Disability Provider","Learning Disabilities Management","R4000"
"Wolverhampton City Council","http://opendatacommunities.org/id/metropolitan-district-council/wolverhampton","705453","Mercian Shutters Limited","41211","8,322.00","R&M - Departmental planned (internal)","130238762","13/02/2019","Environmental Maintenance","Parks / Open Spaces - Repairs & Maintenance","R2000"
"Wolverhampton City Council","http://opendatacommunities.org/id/metropolitan-district-council/wolverhampton","705453","Mercian Shutters Limited","41244","645.00","R&M - Departmental planned (internal)","130241247","13/02/2019","Maintenance Programme","Centralised R&M","R2000"
"Wolverhampton City Council","http://opendatacommunities.org/id/metropolitan-district-council/wolverhampton","705461","Merridale Primary School Fund A/C","83","480.00","TPP - Child Care provided for client","130243031","08/02/2019","Adult Education","Advance Learner Loan","R5034"
"Wolverhampton City Council","http://opendatacommunities.org/id/metropolitan-district-council/wolverhampton","705486","Michael Page Int Recruitment Limited","6429192","2,450.00","Agency Staff","130242743","27/02/2019","Capital Programme","Capital Programme Team","R1100"
"Wolverhampton City Council","http://opendatacommunities.org/id/metropolitan-district-council/wolverhampton","705486","Michael Page Int Recruitment Limited","6427751","2,999.97","Agency Staff","130242340","22/02/2019","Corporate Asset Management","Strategic Asset Management Team","R1100"
"Wolverhampton City Council","http://opendatacommunities.org/id/metropolitan-district-council/wolverhampton","705486","Michael Page Int Recruitment Limited","6427751","0.03","Agency Staff","130242340","22/02/2019","Corporate Asset Management","Strategic Asset Management Team","R1100"
"Wolverhampton City Council","http://opendatacommunities.org/id/metropolitan-district-council/wolverhampton","705486","Michael Page Int Recruitment Limited","6424429","3,000.00","Agency Staff","130241374","15/02/2019","Corporate Asset Management","Strategic Asset Management Team","R1100"
"Wolverhampton City Council","http://opendatacommunities.org/id/metropolitan-district-council/wolverhampton","705486","Michael Page Int Recruitment Limited","6421442","2,999.97","Agency Staff","130240951","08/02/2019","Corporate Asset Management","Strategic Asset Management Team","R1100"
"Wolverhampton City Council","http://opendatacommunities.org/id/metropolitan-district-council/wolverhampton","705486","Michael Page Int Recruitment Limited","6421442","0.03","Agency Staff","130240951","08/02/2019","Corporate Asset Management","Strategic Asset Management Team","R1100"
"Wolverhampton City Council","http://opendatacommunities.org/id/metropolitan-district-council/wolverhampton","705519","Midland Motascreens Limited","16827","125.00","Services - Professional Fees","190557567","06/02/2019","Fleet Services","Fleet Management","R4400"
"Wolverhampton City Council","http://opendatacommunities.org/id/metropolitan-district-council/wolverhampton","705519","Midland Motascreens Limited","16825","325.00","Services - Professional Fees","190557566","06/02/2019","Fleet Services","Fleet Management","R4400"
"Wolverhampton City Council","http://opendatacommunities.org/id/metropolitan-district-council/wolverhampton","705519","Midland Motascreens Limited","16820","160.00","Insurance - General","130242341","20/02/2019","Highways Maintenance","Winter Maintenance","R4962"
"Wolverhampton City Council","http://opendatacommunities.org/id/metropolitan-district-council/wolverhampton","705520","Midland News Association Limited","I7583566","890.44","Marketing \ Non-staff advertising","130241719","13/02/2019","Operation & Maintenance of Existing Network","UTC - Utilities Organisations","R4317"
"Wolverhampton City Council","http://opendatacommunities.org/id/metropolitan-district-council/wolverhampton","705520","Midland News Association Limited","I7583567","1,187.28","Marketing \ Non-staff advertising","130241720","13/02/2019","Operation & Maintenance of Existing Network","UTC - Utilities Organisations","R4317"
"Wolverhampton City Council","http://opendatacommunities.org/id/metropolitan-district-council/wolverhampton","705520","Midland News Association Limited","I7580064","1,003.50","Marketing \ Non-staff advertising","130240953","06/02/2019","Adult Education","Service Wide","R4317"
"Wolverhampton City Council","http://opendatacommunities.org/id/metropolitan-district-council/wolverhampton","705520","Midland News Association Limited","I7588097","989.40","Marketing \ Non-staff advertising","130243618","27/02/2019","Operation & Maintenance of Existing Network","UTC - Utilities Organisations","R4317"
"Wolverhampton City Council","http://opendatacommunities.org/id/metropolitan-district-council/wolverhampton","705520","Midland News Association Limited","I7587042","890.44","Marketing \ Non-staff advertising","130243617","27/02/2019","Operation & Maintenance of Existing Network","UTC - Utilities Organisations","R4317"
"Wolverhampton City Council","http://opendatacommunities.org/id/metropolitan-district-council/wolverhampton","705520","Midland News Association Limited","I7587963","1,000.00","Marketing \ Non-staff advertising","130244458","27/02/2019","Leisure Services","WV Active Marketing","R4317"
"Wolverhampton City Council","http://opendatacommunities.org/id/metropolitan-district-council/wolverhampton","705520","Midland News Association Limited","I7581091","445.22","Marketing \ Non-staff advertising","130240955","06/02/2019","Planning","Planning","R4317"
"Wolverhampton City Council","http://opendatacommunities.org/id/metropolitan-district-council/wolverhampton","705520","Midland News Association Limited","I7579699","890.44","Marketing \ Non-staff advertising","130240952","06/02/2019","Operation & Maintenance of Existing Network","UTC - Utilities Organisations","R4317"
"Wolverhampton City Council","http://opendatacommunities.org/id/metropolitan-district-council/wolverhampton","705520","Midland News Association Limited","I7580430","989.40","Marketing \ Non-staff advertising","130240954","06/02/2019","Operation & Maintenance of Existing Network","UTC - Utilities Organisations","R4317"
"Wolverhampton City Council","http://opendatacommunities.org/id/metropolitan-district-council/wolverhampton","705520","Midland News Association Limited","I7588098","148.40","Marketing \ Non-staff advertising","130243619","27/02/2019","Planning","Planning","R4317"
"Wolverhampton City Council","http://opendatacommunities.org/id/metropolitan-district-council/wolverhampton","705520","Midland News Association Limited","I7587363","562.50","Marketing \ Non-staff advertising","130244457","27/02/2019","Corporate Communications","Communications & Marketing - General","R4317"
"Wolverhampton City Council","http://opendatacommunities.org/id/metropolitan-district-council/wolverhampton","705520","Midland News Association Limited","I7587362","562.50","Marketing \ Non-staff advertising","130244456","27/02/2019","Corporate Communications","Communications & Marketing - General","R4317"
"Wolverhampton City Council","http://opendatacommunities.org/id/metropolitan-district-council/wolverhampton","705520","Midland News Association Limited","I7587361","562.50","Marketing \ Non-staff advertising","130244455","27/02/2019","Corporate Communications","Communications & Marketing - General","R4317"
"Wolverhampton City Council","http://opendatacommunities.org/id/metropolitan-district-council/wolverhampton","705520","Midland News Association Limited","I7587360","562.50","Marketing \ Non-staff advertising","130244454","27/02/2019","Corporate Communications","Communications & Marketing - General","R4317"
"Wolverhampton City Council","http://opendatacommunities.org/id/metropolitan-district-council/wolverhampton","705520","Midland News Association Limited","I7584471","180.65","Marketing \ Non-staff advertising","130242342","20/02/2019","Leisure Services","WV Active Marketing","R4317"
"Wolverhampton City Council","http://opendatacommunities.org/id/metropolitan-district-council/wolverhampton","705520","Midland News Association Limited","I7585965","890.44","Marketing \ Non-staff advertising","130242343","20/02/2019","Operation & Maintenance of Existing Network","UTC - Utilities Organisations","R4317"
"Wolverhampton City Council","http://opendatacommunities.org/id/metropolitan-district-council/wolverhampton","705520","Midland News Association Limited","I7585967","791.52","Marketing \ Non-staff advertising","130242345","20/02/2019","Operation & Maintenance of Existing Network","UTC - Utilities Organisations","R4317"
"Wolverhampton City Council","http://opendatacommunities.org/id/metropolitan-district-council/wolverhampton","705520","Midland News Association Limited","I7585966","890.44","Marketing \ Non-staff advertising","130242344","20/02/2019","Operation & Maintenance of Existing Network","UTC - Utilities Organisations","R4317"
"Wolverhampton City Council","http://opendatacommunities.org/id/metropolitan-district-council/wolverhampton","705525","Midland Quarry Products Limited","1980635096","1,829.69","Materials","130242167","20/02/2019","Highways Maintenance","Patching","R4007"
"Wolverhampton City Council","http://opendatacommunities.org/id/metropolitan-district-council/wolverhampton","705525","Midland Quarry Products Limited","1980635097","113.63","Materials","130242168","20/02/2019","Highways Maintenance","Patching","R4007"
"Wolverhampton City Council","http://opendatacommunities.org/id/metropolitan-district-council/wolverhampton","705525","Midland Quarry Products Limited","1980635098","118.37","Materials","130242169","20/02/2019","Highways Maintenance","Patching","R4007"
"Wolverhampton City Council","http://opendatacommunities.org/id/metropolitan-district-council/wolverhampton","705525","Midland Quarry Products Limited","1980636044","0.10","Materials","130242592","20/02/2019","Highways Maintenance","Patching","R4007"
"Wolverhampton City Council","http://opendatacommunities.org/id/metropolitan-district-council/wolverhampton","705525","Midland Quarry Products Limited","1980636044","0.10","Materials","130242592","20/02/2019","Highways Maintenance","Patching","R4007"
"Wolverhampton City Council","http://opendatacommunities.org/id/metropolitan-district-council/wolverhampton","705525","Midland Quarry Products Limited","1980636044","35.34","Materials","130242592","20/02/2019","Highways Maintenance","Patching","R4007"
"Wolverhampton City Council","http://opendatacommunities.org/id/metropolitan-district-council/wolverhampton","705525","Midland Quarry Products Limited","1980636044","1,413.14","Materials","130242592","20/02/2019","Highways Maintenance","Patching","R4007"
"Wolverhampton City Council","http://opendatacommunities.org/id/metropolitan-district-council/wolverhampton","705525","Midland Quarry Products Limited","1980631321","255.97","Materials","130240956","06/02/2019","Highways Maintenance","Patching","R4007"
"Wolverhampton City Council","http://opendatacommunities.org/id/metropolitan-district-council/wolverhampton","705525","Midland Quarry Products Limited","1980632667","839.77","Materials","130241377","13/02/2019","Highways Maintenance","Patching","R4007"
"Wolverhampton City Council","http://opendatacommunities.org/id/metropolitan-district-council/wolverhampton","705525","Midland Quarry Products Limited","1980632666","862.26","Materials","130241376","13/02/2019","Highways Maintenance","Patching","R4007"
"Wolverhampton City Council","http://opendatacommunities.org/id/metropolitan-district-council/wolverhampton","705525","Midland Quarry Products Limited","1980630475","1,279.71","Materials","130240507","06/02/2019","Highways Maintenance","Patching","R4007"
"Wolverhampton City Council","http://opendatacommunities.org/id/metropolitan-district-council/wolverhampton","705525","Midland Quarry Products Limited","1980636045","527.47","Materials","130242593","20/02/2019","Highways Maintenance","Patching","R4007"
"Wolverhampton City Council","http://opendatacommunities.org/id/metropolitan-district-council/wolverhampton","705525","Midland Quarry Products Limited","1980630476","399.97","Materials","130240508","06/02/2019","Highways Maintenance","Patching","R4007"
"Wolverhampton City Council","http://opendatacommunities.org/id/metropolitan-district-council/wolverhampton","705525","Midland Quarry Products Limited","1980632665","1,362.25","Materials","130241375","13/02/2019","Highways Maintenance","Patching","R4007"
"Wolverhampton City Council","http://opendatacommunities.org/id/metropolitan-district-council/wolverhampton","705525","Midland Quarry Products Limited","1980633594","84.16","Materials","130241722","13/02/2019","Highways Maintenance","Patching","R4007"
"Wolverhampton City Council","http://opendatacommunities.org/id/metropolitan-district-council/wolverhampton","705525","Midland Quarry Products Limited","1980633593","1,970.13","Materials","130241721","13/02/2019","Highways Maintenance","Patching","R4007"
"Wolverhampton City Council","http://opendatacommunities.org/id/metropolitan-district-council/wolverhampton","705534","Midlands Truck & Van Limited","88450528","10.98","Equipment - Purchase","190567397","27/02/2019","Fleet Services","Fleet Management","R4000"
"Wolverhampton City Council","http://opendatacommunities.org/id/metropolitan-district-council/wolverhampton","705534","Midlands Truck & Van Limited","83630245","55.00","Services - Professional Fees","190567396","27/02/2019","Fleet Services","Fleet Management","R4400"
"Wolverhampton City Council","http://opendatacommunities.org/id/metropolitan-district-council/wolverhampton","705534","Midlands Truck & Van Limited","83630245","110.00","Services - Professional Fees","190567396","27/02/2019","Fleet Services","Fleet Management","R4400"
"Wolverhampton City Council","http://opendatacommunities.org/id/metropolitan-district-council/wolverhampton","705534","Midlands Truck & Van Limited","83630245","110.00","Services - Professional Fees","190567396","27/02/2019","Fleet Services","Fleet Management","R4400"
"Wolverhampton City Council","http://opendatacommunities.org/id/metropolitan-district-council/wolverhampton","705534","Midlands Truck & Van Limited","83630245","22.00","Services - Professional Fees","190567396","27/02/2019","Fleet Services","Fleet Management","R4400"
"Wolverhampton City Council","http://opendatacommunities.org/id/metropolitan-district-council/wolverhampton","705534","Midlands Truck & Van Limited","83630245","1.55","Services - Professional Fees","190567396","27/02/2019","Fleet Services","Fleet Management","R4400"
"Wolverhampton City Council","http://opendatacommunities.org/id/metropolitan-district-council/wolverhampton","705534","Midlands Truck & Van Limited","83630245","19.80","Services - Professional Fees","190567396","27/02/2019","Fleet Services","Fleet Management","R4400"
"Wolverhampton City Council","http://opendatacommunities.org/id/metropolitan-district-council/wolverhampton","705534","Midlands Truck & Van Limited","83630245","110.00","Services - Professional Fees","190567396","27/02/2019","Fleet Services","Fleet Management","R4400"
"Wolverhampton City Council","http://opendatacommunities.org/id/metropolitan-district-council/wolverhampton","705534","Midlands Truck & Van Limited","83630245","66.00","Services - Professional Fees","190567396","27/02/2019","Fleet Services","Fleet Management","R4400"
"Wolverhampton City Council","http://opendatacommunities.org/id/metropolitan-district-council/wolverhampton","705534","Midlands Truck & Van Limited","88449796","56.25","Equipment - Purchase","190557582","06/02/2019","Fleet Services","Fleet Management","R4000"
"Wolverhampton City Council","http://opendatacommunities.org/id/metropolitan-district-council/wolverhampton","705534","Midlands Truck & Van Limited","88449803","56.25","Equipment - Purchase","190557583","06/02/2019","Fleet Services","Fleet Management","R4000"
"Wolverhampton City Council","http://opendatacommunities.org/id/metropolitan-district-council/wolverhampton","705534","Midlands Truck & Van Limited","88449842","169.70","Equipment - Purchase","190557584","06/02/2019","Fleet Services","Fleet Management","R4000"
"Wolverhampton City Council","http://opendatacommunities.org/id/metropolitan-district-council/wolverhampton","705534","Midlands Truck & Van Limited","88449796","83.25","Equipment - Purchase","190557582","06/02/2019","Fleet Services","Fleet Management","R4000"
"Wolverhampton City Council","http://opendatacommunities.org/id/metropolitan-district-council/wolverhampton","705534","Midlands Truck & Van Limited","88449796","5.63","Equipment - Purchase","190557582","06/02/2019","Fleet Services","Fleet Management","R4000"
"Wolverhampton City Council","http://opendatacommunities.org/id/metropolitan-district-council/wolverhampton","705534","Midlands Truck & Van Limited","88449796","33.03","Equipment - Purchase","190557582","06/02/2019","Fleet Services","Fleet Management","R4000"
"Wolverhampton City Council","http://opendatacommunities.org/id/metropolitan-district-council/wolverhampton","705534","Midlands Truck & Van Limited","88449796","10.80","Equipment - Purchase","190557582","06/02/2019","Fleet Services","Fleet Management","R4000"
"Wolverhampton City Council","http://opendatacommunities.org/id/metropolitan-district-council/wolverhampton","705534","Midlands Truck & Van Limited","88449796","22.86","Equipment - Purchase","190557582","06/02/2019","Fleet Services","Fleet Management","R4000"
"Wolverhampton City Council","http://opendatacommunities.org/id/metropolitan-district-council/wolverhampton","705534","Midlands Truck & Van Limited","88446848","2.52","Equipment - Purchase","190562054","15/02/2019","Fleet Services","Fleet Management","R4000"
"Wolverhampton City Council","http://opendatacommunities.org/id/metropolitan-district-council/wolverhampton","705534","Midlands Truck & Van Limited","88450907","2.52","Equipment - Purchase","190567398","27/02/2019","Fleet Services","Fleet Management","R4000"
"Wolverhampton City Council","http://opendatacommunities.org/id/metropolitan-district-council/wolverhampton","705534","Midlands Truck & Van Limited","88450907","4.68","Equipment - Purchase","190567398","27/02/2019","Fleet Services","Fleet Management","R4000"
"Wolverhampton City Council","http://opendatacommunities.org/id/metropolitan-district-council/wolverhampton","705534","Midlands Truck & Van Limited","88450907","24.03","Equipment - Purchase","190567398","27/02/2019","Fleet Services","Fleet Management","R4000"
"Wolverhampton City Council","http://opendatacommunities.org/id/metropolitan-district-council/wolverhampton","705534","Midlands Truck & Van Limited","88450082","46.98","Equipment - Purchase","190563463","20/02/2019","Fleet Services","Fleet Management","R4000"
"Wolverhampton City Council","http://opendatacommunities.org/id/metropolitan-district-council/wolverhampton","705534","Midlands Truck & Van Limited","88450082","73.80","Equipment - Purchase","190563463","20/02/2019","Fleet Services","Fleet Management","R4000"
"Wolverhampton City Council","http://opendatacommunities.org/id/metropolitan-district-council/wolverhampton","705534","Midlands Truck & Van Limited","88450082","44.46","Equipment - Purchase","190563463","20/02/2019","Fleet Services","Fleet Management","R4000"
"Wolverhampton City Council","http://opendatacommunities.org/id/metropolitan-district-council/wolverhampton","705534","Midlands Truck & Van Limited","88450082","7.20","Equipment - Purchase","190563463","20/02/2019","Fleet Services","Fleet Management","R4000"
"Wolverhampton City Council","http://opendatacommunities.org/id/metropolitan-district-council/wolverhampton","705534","Midlands Truck & Van Limited","88450082","42.44","Equipment - Purchase","190563463","20/02/2019","Fleet Services","Fleet Management","R4000"
"Wolverhampton City Council","http://opendatacommunities.org/id/metropolitan-district-council/wolverhampton","705534","Midlands Truck & Van Limited","88450720","11.88","Equipment - Purchase","190563465","20/02/2019","Fleet Services","Fleet Management","R4000"
"Wolverhampton City Council","http://opendatacommunities.org/id/metropolitan-district-council/wolverhampton","705534","Midlands Truck & Van Limited","88450161","31.32","Equipment - Purchase","190563464","20/02/2019","Fleet Services","Fleet Management","R4000"
"Wolverhampton City Council","http://opendatacommunities.org/id/metropolitan-district-council/wolverhampton","705534","Midlands Truck & Van Limited","83629392","1,100.00","Services - Professional Fees","190565744","22/02/2019","Fleet Services","Fleet Management","R4400"
"Wolverhampton City Council","http://opendatacommunities.org/id/metropolitan-district-council/wolverhampton","705542","Midwest Electrical Services Limited","I19288","37.67","R&M - Departmental planned (external)","130244473","27/02/2019","Maintenance Programme","Centralised R&M","R2001"
"Wolverhampton City Council","http://opendatacommunities.org/id/metropolitan-district-council/wolverhampton","705542","Midwest Electrical Services Limited","I19156","28.51","R&M - Departmental planned (external)","130242745","27/02/2019","Maintenance Programme","Centralised R&M","R2001"
"Wolverhampton City Council","http://opendatacommunities.org/id/metropolitan-district-council/wolverhampton","705542","Midwest Electrical Services Limited","I18949","37.75","R&M - Departmental planned (external)","130241380","27/02/2019","Maintenance Programme","Centralised R&M","R2001"
"Wolverhampton City Council","http://opendatacommunities.org/id/metropolitan-district-council/wolverhampton","705542","Midwest Electrical Services Limited","I19147","23.38","R&M - Departmental planned (external)","130242595","27/02/2019","Maintenance Programme","Centralised R&M","R2001"
"Wolverhampton City Council","http://opendatacommunities.org/id/metropolitan-district-council/wolverhampton","705542","Midwest Electrical Services Limited","I19154","37.67","R&M - Departmental planned (external)","130242601","27/02/2019","Maintenance Programme","Centralised R&M","R2001"
"Wolverhampton City Council","http://opendatacommunities.org/id/metropolitan-district-council/wolverhampton","705542","Midwest Electrical Services Limited","I19106","35.07","R&M - Departmental planned (external)","130242457","27/02/2019","Maintenance Programme","Centralised R&M","R2001"
"Wolverhampton City Council","http://opendatacommunities.org/id/metropolitan-district-council/wolverhampton","705542","Midwest Electrical Services Limited","I19197","60.27","R&M - Departmental planned (external)","130243461","27/02/2019","Maintenance Programme","Centralised R&M","R2001"
"Wolverhampton City Council","http://opendatacommunities.org/id/metropolitan-district-council/wolverhampton","705542","Midwest Electrical Services Limited","I19196","35.18","R&M - Departmental planned (external)","130243460","27/02/2019","Maintenance Programme","Centralised R&M","R2001"
"Wolverhampton City Council","http://opendatacommunities.org/id/metropolitan-district-council/wolverhampton","705542","Midwest Electrical Services Limited","I19280","35.07","R&M - Departmental planned (external)","130244472","27/02/2019","Maintenance Programme","Centralised R&M","R2001"
"Wolverhampton City Council","http://opendatacommunities.org/id/metropolitan-district-council/wolverhampton","705542","Midwest Electrical Services Limited","I19282","55.39","R&M - Departmental planned (external)","130244619","27/02/2019","Maintenance Programme","Centralised R&M","R2001"
"Wolverhampton City Council","http://opendatacommunities.org/id/metropolitan-district-council/wolverhampton","705542","Midwest Electrical Services Limited","I18948","890.00","R&M - Departmental planned (external)","130241379","27/02/2019","Maintenance Programme","Centralised R&M","R2001"
"Wolverhampton City Council","http://opendatacommunities.org/id/metropolitan-district-council/wolverhampton","705542","Midwest Electrical Services Limited","I19146","54.97","R&M - Departmental planned (external)","130242594","27/02/2019","Maintenance Programme","Centralised R&M","R2001"
"Wolverhampton City Council","http://opendatacommunities.org/id/metropolitan-district-council/wolverhampton","705542","Midwest Electrical Services Limited","I19261","2,248.56","R&M - Departmental planned (external)","130244460","27/02/2019","Cleaning","Priory Green","R2001"
"Wolverhampton City Council","http://opendatacommunities.org/id/metropolitan-district-council/wolverhampton","705542","Midwest Electrical Services Limited","I19260","56.51","R&M - Departmental planned (external)","130245007","27/02/2019","Facilities Management","Magistrates","R2001"
"Wolverhampton City Council","http://opendatacommunities.org/id/metropolitan-district-council/wolverhampton","705542","Midwest Electrical Services Limited","I19180","57.72","R&M - Departmental planned (external)","130243035","27/02/2019","Maintenance Programme","Centralised R&M","R2001"
"Wolverhampton City Council","http://opendatacommunities.org/id/metropolitan-district-council/wolverhampton","705542","Midwest Electrical Services Limited","I17937","2,640.00","R&M - Departmental planned (external)","130232830","27/02/2019","Maintenance Programme","Centralised R&M","R2001"
"Wolverhampton City Council","http://opendatacommunities.org/id/metropolitan-district-council/wolverhampton","705542","Midwest Electrical Services Limited","I19236","226.02","R&M - Departmental planned (external)","130244053","27/02/2019","Facilities Management","i10 Facilities Management","R2001"
"Wolverhampton City Council","http://opendatacommunities.org/id/metropolitan-district-council/wolverhampton","705542","Midwest Electrical Services Limited","I19181","4,680.00","R&M - Departmental planned (external)","130243458","27/02/2019","Maintenance Programme","Centralised R&M","R2001"
"Wolverhampton City Council","http://opendatacommunities.org/id/metropolitan-district-council/wolverhampton","705542","Midwest Electrical Services Limited","I19164","82.76","R&M - Departmental planned (external)","130242753","27/02/2019","Maintenance Programme","Centralised R&M","R2001"
"Wolverhampton City Council","http://opendatacommunities.org/id/metropolitan-district-council/wolverhampton","705542","Midwest Electrical Services Limited","I19179","270.19","R&M - Departmental planned (external)","130243034","27/02/2019","Maintenance Programme","Centralised R&M","R2001"
"Wolverhampton City Council","http://opendatacommunities.org/id/metropolitan-district-council/wolverhampton","705542","Midwest Electrical Services Limited","I19166","23.38","R&M - Departmental planned (external)","130242755","27/02/2019","Maintenance Programme","Centralised R&M","R2001"
"Wolverhampton City Council","http://opendatacommunities.org/id/metropolitan-district-council/wolverhampton","705542","Midwest Electrical Services Limited","I19241","23.38","R&M - Departmental planned (external)","130244209","27/02/2019","Maintenance Programme","Centralised R&M","R2001"
"Wolverhampton City Council","http://opendatacommunities.org/id/metropolitan-district-council/wolverhampton","705542","Midwest Electrical Services Limited","I19150","23.38","R&M - Departmental planned (external)","130242597","27/02/2019","Maintenance Programme","Centralised R&M","R2001"
"Wolverhampton City Council","http://opendatacommunities.org/id/metropolitan-district-council/wolverhampton","705542","Midwest Electrical Services Limited","I19160","23.38","R&M - Departmental planned (external)","130242749","27/02/2019","Facilities Management","Magistrates","R2001"
"Wolverhampton City Council","http://opendatacommunities.org/id/metropolitan-district-council/wolverhampton","705542","Midwest Electrical Services Limited","I19223","23.38","R&M - Departmental planned (external)","130243622","27/02/2019","Maintenance Programme","Centralised R&M","R2001"
"Wolverhampton City Council","http://opendatacommunities.org/id/metropolitan-district-council/wolverhampton","705542","Midwest Electrical Services Limited","I19265","23.38","R&M - Departmental planned (external)","130244464","27/02/2019","Maintenance Programme","Centralised R&M","R2001"
"Wolverhampton City Council","http://opendatacommunities.org/id/metropolitan-district-council/wolverhampton","705542","Midwest Electrical Services Limited","I19151","33.33","R&M - Departmental planned (external)","130242598","27/02/2019","Maintenance Programme","Centralised R&M","R2001"
"Wolverhampton City Council","http://opendatacommunities.org/id/metropolitan-district-council/wolverhampton","705542","Midwest Electrical Services Limited","I19165","50.25","R&M - Departmental planned (external)","130242754","27/02/2019","Maintenance Programme","Centralised R&M","R2001"
"Wolverhampton City Council","http://opendatacommunities.org/id/metropolitan-district-council/wolverhampton","705542","Midwest Electrical Services Limited","I19161","33.44","R&M - Departmental planned (external)","130242750","27/02/2019","Maintenance Programme","Centralised R&M","R2001"
"Wolverhampton City Council","http://opendatacommunities.org/id/metropolitan-district-council/wolverhampton","705542","Midwest Electrical Services Limited","I19262","55.93","R&M - Departmental planned (external)","130244461","27/02/2019","Facilities Management","Magistrates","R2001"
"Wolverhampton City Council","http://opendatacommunities.org/id/metropolitan-district-council/wolverhampton","705542","Midwest Electrical Services Limited","I17599","46.76","R&M - Departmental planned (external)","130230641","27/02/2019","Facilities Management","Caretakers Community Centre","R2001"
"Wolverhampton City Council","http://opendatacommunities.org/id/metropolitan-district-council/wolverhampton","705542","Midwest Electrical Services Limited","I19167","47.93","R&M - Departmental planned (external)","130242756","27/02/2019","Maintenance Programme","Centralised R&M","R2001"
"Wolverhampton City Council","http://opendatacommunities.org/id/metropolitan-district-council/wolverhampton","705542","Midwest Electrical Services Limited","I19158","49.47","R&M - Departmental planned (external)","130242747","27/02/2019","Maintenance Programme","Centralised R&M","R2001"
"Wolverhampton City Council","http://opendatacommunities.org/id/metropolitan-district-council/wolverhampton","705542","Midwest Electrical Services Limited","I19168","50.25","R&M - Departmental planned (external)","130242757","27/02/2019","Maintenance Programme","Centralised R&M","R2001"
"Wolverhampton City Council","http://opendatacommunities.org/id/metropolitan-district-council/wolverhampton","705542","Midwest Electrical Services Limited","I19222","48.25","R&M - Departmental planned (external)","130244785","27/02/2019","Maintenance Programme","Centralised R&M","R2001"
"Wolverhampton City Council","http://opendatacommunities.org/id/metropolitan-district-council/wolverhampton","705542","Midwest Electrical Services Limited","I19279","45.79","R&M - Departmental planned (external)","130244471","27/02/2019","Maintenance Programme","Centralised R&M","R2001"
"Wolverhampton City Council","http://opendatacommunities.org/id/metropolitan-district-council/wolverhampton","705542","Midwest Electrical Services Limited","I19224","41.58","R&M - Departmental planned (external)","130243623","27/02/2019","Maintenance Programme","Centralised R&M","R2001"
"Wolverhampton City Council","http://opendatacommunities.org/id/metropolitan-district-council/wolverhampton","705542","Midwest Electrical Services Limited","I19159","44.52","R&M - Departmental planned (external)","130242748","27/02/2019","Maintenance Programme","Centralised R&M","R2001"
"Wolverhampton City Council","http://opendatacommunities.org/id/metropolitan-district-council/wolverhampton","705542","Midwest Electrical Services Limited","I19171","44.38","R&M - Departmental planned (external)","130242760","27/02/2019","Maintenance Programme","Centralised R&M","R2001"
"Wolverhampton City Council","http://opendatacommunities.org/id/metropolitan-district-council/wolverhampton","705542","Midwest Electrical Services Limited","I19170","43.82","R&M - Departmental planned (external)","130242759","27/02/2019","Maintenance Programme","Centralised R&M","R2001"
"Wolverhampton City Council","http://opendatacommunities.org/id/metropolitan-district-council/wolverhampton","705542","Midwest Electrical Services Limited","I19172","43.90","R&M - Departmental planned (external)","130242761","27/02/2019","Maintenance Programme","Centralised R&M","R2001"
"Wolverhampton City Council","http://opendatacommunities.org/id/metropolitan-district-council/wolverhampton","705542","Midwest Electrical Services Limited","I18983","39.34","R&M - Departmental planned (external)","130242002","20/02/2019","Maintenance Programme","Centralised R&M","R2001"
"Wolverhampton City Council","http://opendatacommunities.org/id/metropolitan-district-council/wolverhampton","705542","Midwest Electrical Services Limited","I18980","42.54","R&M - Departmental planned (external)","130241999","20/02/2019","Maintenance Programme","Centralised R&M","R2001"
"Wolverhampton City Council","http://opendatacommunities.org/id/metropolitan-district-council/wolverhampton","705542","Midwest Electrical Services Limited","I18728","49.70","R&M - Departmental planned (external)","130238621","06/02/2019","Maintenance Programme","Centralised R&M","R2001"
"Wolverhampton City Council","http://opendatacommunities.org/id/metropolitan-district-council/wolverhampton","705542","Midwest Electrical Services Limited","I17831","21,427.30","R&M - Departmental planned (external)","130241126","06/02/2019","Maintenance Programme","Centralised R&M","R2001"
"Wolverhampton City Council","http://opendatacommunities.org/id/metropolitan-district-council/wolverhampton","705542","Midwest Electrical Services Limited","I17831","639.10","R&M - Departmental planned (external)","130241126","06/02/2019","Maintenance Programme","Centralised R&M","R2001"
"Wolverhampton City Council","http://opendatacommunities.org/id/metropolitan-district-council/wolverhampton","705542","Midwest Electrical Services Limited","I18984","38.71","R&M - Departmental planned (external)","130242003","20/02/2019","Maintenance Programme","Centralised R&M","R2001"
"Wolverhampton City Council","http://opendatacommunities.org/id/metropolitan-district-council/wolverhampton","705542","Midwest Electrical Services Limited","AM/NJR1","-700.00","R&M - Departmental planned (external)","130240509","06/02/2019","Maintenance Programme","Centralised R&M","R2001"
"Wolverhampton City Council","http://opendatacommunities.org/id/metropolitan-district-council/wolverhampton","705542","Midwest Electrical Services Limited","I18741","1,159.49","R&M - Departmental planned (external)","130238628","06/02/2019","Maintenance Programme","Centralised R&M","R2001"
"Wolverhampton City Council","http://opendatacommunities.org/id/metropolitan-district-council/wolverhampton","705542","Midwest Electrical Services Limited","I18874","785.82","R&M - Departmental planned (external)","130240220","06/02/2019","Maintenance Programme","Centralised R&M","R2001"
"Wolverhampton City Council","http://opendatacommunities.org/id/metropolitan-district-council/wolverhampton","705542","Midwest Electrical Services Limited","I17184","14,915.88","R&M - Departmental planned (external)","130241125","06/02/2019","Maintenance Programme","Centralised R&M","R2001"
"Wolverhampton City Council","http://opendatacommunities.org/id/metropolitan-district-council/wolverhampton","705542","Midwest Electrical Services Limited","I17897","0.14","R&M - Departmental planned (external)","130241127","06/02/2019","Maintenance Programme","Centralised R&M","R2001"
"Wolverhampton City Council","http://opendatacommunities.org/id/metropolitan-district-council/wolverhampton","705542","Midwest Electrical Services Limited","I17897","6,489.01","R&M - Departmental planned (external)","130241127","06/02/2019","Maintenance Programme","Centralised R&M","R2001"
"Wolverhampton City Council","http://opendatacommunities.org/id/metropolitan-district-council/wolverhampton","705542","Midwest Electrical Services Limited","I17897","56.35","R&M - Departmental planned (external)","130241127","06/02/2019","Maintenance Programme","Centralised R&M","R2001"
"Wolverhampton City Council","http://opendatacommunities.org/id/metropolitan-district-council/wolverhampton","705542","Midwest Electrical Services Limited","I18747","7,762.50","R&M - Departmental planned (external)","130238629","06/02/2019","Maintenance Programme","Centralised R&M","R2001"
"Wolverhampton City Council","http://opendatacommunities.org/id/metropolitan-district-council/wolverhampton","705542","Midwest Electrical Services Limited","I18997","665.23","R&M - Departmental planned (external)","130242009","20/02/2019","Facilities Management","Magistrates","R2001"
"Wolverhampton City Council","http://opendatacommunities.org/id/metropolitan-district-council/wolverhampton","705542","Midwest Electrical Services Limited","I18998","567.79","R&M - Departmental planned (external)","130242010","20/02/2019","Facilities Management","Magistrates","R2001"
"Wolverhampton City Council","http://opendatacommunities.org/id/metropolitan-district-council/wolverhampton","705542","Midwest Electrical Services Limited","I18992","1,450.00","R&M - Departmental planned (external)","130242008","20/02/2019","Maintenance Programme","Centralised R&M","R2001"
"Wolverhampton City Council","http://opendatacommunities.org/id/metropolitan-district-council/wolverhampton","705542","Midwest Electrical Services Limited","I18979","41.65","R&M - Departmental planned (external)","130241998","20/02/2019","Maintenance Programme","Centralised R&M","R2001"
"Wolverhampton City Council","http://opendatacommunities.org/id/metropolitan-district-council/wolverhampton","705542","Midwest Electrical Services Limited","I18977","848.56","R&M - Departmental planned (external)","130241996","20/02/2019","Maintenance Programme","Centralised R&M","R2001"
"Wolverhampton City Council","http://opendatacommunities.org/id/metropolitan-district-council/wolverhampton","705542","Midwest Electrical Services Limited","AM/NJR25/1","-428.05","R&M - Departmental planned (external)","130242170","20/02/2019","Facilities Management","Caretakers Community Centre","R2001"
"Wolverhampton City Council","http://opendatacommunities.org/id/metropolitan-district-council/wolverhampton","705542","Midwest Electrical Services Limited","I18982","34.78","R&M - Departmental planned (external)","130242001","20/02/2019","Facilities Management","Magistrates","R2001"
"Wolverhampton City Council","http://opendatacommunities.org/id/metropolitan-district-council/wolverhampton","705542","Midwest Electrical Services Limited","I18988","28,200.00","R&M - Departmental planned (external)","130242006","20/02/2019","Maintenance Programme","Centralised R&M","R2001"
"Wolverhampton City Council","http://opendatacommunities.org/id/metropolitan-district-council/wolverhampton","705542","Midwest Electrical Services Limited","I18978","102.66","R&M - Departmental planned (external)","130241997","20/02/2019","Maintenance Programme","Centralised R&M","R2001"
"Wolverhampton City Council","http://opendatacommunities.org/id/metropolitan-district-council/wolverhampton","705542","Midwest Electrical Services Limited","I18981","3,370.00","R&M - Departmental planned (external)","130242000","20/02/2019","Maintenance Programme","Centralised R&M","R2001"
"Wolverhampton City Council","http://opendatacommunities.org/id/metropolitan-district-council/wolverhampton","705542","Midwest Electrical Services Limited","I18987","85.35","R&M - Departmental planned (external)","130242171","20/02/2019","Maintenance Programme","Centralised R&M","R2001"
"Wolverhampton City Council","http://opendatacommunities.org/id/metropolitan-district-council/wolverhampton","705542","Midwest Electrical Services Limited","I18985","65.60","R&M - Departmental planned (external)","130242004","20/02/2019","Maintenance Programme","Centralised R&M","R2001"
"Wolverhampton City Council","http://opendatacommunities.org/id/metropolitan-district-council/wolverhampton","705542","Midwest Electrical Services Limited","I18931","23.38","R&M - Departmental planned (external)","130241131","13/02/2019","Maintenance Programme","Centralised R&M","R2001"
"Wolverhampton City Council","http://opendatacommunities.org/id/metropolitan-district-council/wolverhampton","705542","Midwest Electrical Services Limited","I18951","23.38","R&M - Departmental planned (external)","130241382","13/02/2019","Maintenance Programme","Centralised R&M","R2001"
"Wolverhampton City Council","http://opendatacommunities.org/id/metropolitan-district-council/wolverhampton","705542","Midwest Electrical Services Limited","I18991","5,534.20","R&M - Departmental planned (external)","130242007","20/02/2019","Maintenance Programme","Centralised R&M","R2001"
"Wolverhampton City Council","http://opendatacommunities.org/id/metropolitan-district-council/wolverhampton","705542","Midwest Electrical Services Limited","I18924","32.88","R&M - Departmental planned (external)","130241250","13/02/2019","Facilities Management","Magistrates","R2001"
"Wolverhampton City Council","http://opendatacommunities.org/id/metropolitan-district-council/wolverhampton","705542","Midwest Electrical Services Limited","I18986","73.94","R&M - Departmental planned (external)","130242005","20/02/2019","Maintenance Programme","Centralised R&M","R2001"
"Wolverhampton City Council","http://opendatacommunities.org/id/metropolitan-district-council/wolverhampton","705542","Midwest Electrical Services Limited","I18928","98.04","R&M - Departmental planned (external)","130241128","13/02/2019","Maintenance Programme","Centralised R&M","R2001"
"Wolverhampton City Council","http://opendatacommunities.org/id/metropolitan-district-council/wolverhampton","705542","Midwest Electrical Services Limited","I18947","68.45","R&M - Departmental planned (external)","130241378","13/02/2019","Maintenance Programme","Centralised R&M","R2001"
"Wolverhampton City Council","http://opendatacommunities.org/id/metropolitan-district-council/wolverhampton","705542","Midwest Electrical Services Limited","I18943","35.48","R&M - Departmental planned (external)","130241255","13/02/2019","Maintenance Programme","Centralised R&M","R2001"
"Wolverhampton City Council","http://opendatacommunities.org/id/metropolitan-district-council/wolverhampton","705542","Midwest Electrical Services Limited","I18901","107.44","R&M - Departmental planned (external)","130240397","13/02/2019","Bereavement Services","Cemeteries","R2001"
"Wolverhampton City Council","http://opendatacommunities.org/id/metropolitan-district-council/wolverhampton","705542","Midwest Electrical Services Limited","I18932","43.82","R&M - Departmental planned (external)","130241132","13/02/2019","Maintenance Programme","Centralised R&M","R2001"
"Wolverhampton City Council","http://opendatacommunities.org/id/metropolitan-district-council/wolverhampton","705542","Midwest Electrical Services Limited","I18933","35.07","R&M - Departmental planned (external)","130241254","13/02/2019","Maintenance Programme","Centralised R&M","R2001"
"Wolverhampton City Council","http://opendatacommunities.org/id/metropolitan-district-council/wolverhampton","705542","Midwest Electrical Services Limited","I18731","37.67","R&M - Departmental planned (external)","130238623","01/02/2019","Markets","Wednesfield Street Market","R2001"
"Wolverhampton City Council","http://opendatacommunities.org/id/metropolitan-district-council/wolverhampton","705542","Midwest Electrical Services Limited","I18725","157.17","R&M - Departmental planned (external)","130238618","01/02/2019","Maintenance Programme","Centralised R&M","R2001"
"Wolverhampton City Council","http://opendatacommunities.org/id/metropolitan-district-council/wolverhampton","705542","Midwest Electrical Services Limited","I18710","4,775.00","R&M - Departmental planned (external)","130238433","01/02/2019","Maintenance Programme","Centralised R&M","R2001"
"Wolverhampton City Council","http://opendatacommunities.org/id/metropolitan-district-council/wolverhampton","705542","Midwest Electrical Services Limited","I18736","33.33","R&M - Departmental planned (external)","130238626","01/02/2019","Maintenance Programme","Centralised R&M","R2001"
"Wolverhampton City Council","http://opendatacommunities.org/id/metropolitan-district-council/wolverhampton","705542","Midwest Electrical Services Limited","I18723","23.38","R&M - Departmental planned (external)","130238616","01/02/2019","Maintenance Programme","Centralised R&M","R2001"
"Wolverhampton City Council","http://opendatacommunities.org/id/metropolitan-district-council/wolverhampton","705542","Midwest Electrical Services Limited","I18800","23.38","R&M - Departmental planned (external)","130238864","15/02/2019","Maintenance Programme","Centralised R&M","R2001"
"Wolverhampton City Council","http://opendatacommunities.org/id/metropolitan-district-council/wolverhampton","705542","Midwest Electrical Services Limited","I18926","23.38","R&M - Departmental planned (external)","130241252","15/02/2019","Maintenance Programme","Centralised R&M","R2001"
"Wolverhampton City Council","http://opendatacommunities.org/id/metropolitan-district-council/wolverhampton","705542","Midwest Electrical Services Limited","I18927","23.38","R&M - Departmental planned (external)","130241253","15/02/2019","Maintenance Programme","Centralised R&M","R2001"
"Wolverhampton City Council","http://opendatacommunities.org/id/metropolitan-district-council/wolverhampton","705542","Midwest Electrical Services Limited","I18768","40.92","R&M - Departmental planned (external)","130239389","08/02/2019","Maintenance Programme","Centralised R&M","R2001"
"Wolverhampton City Council","http://opendatacommunities.org/id/metropolitan-district-council/wolverhampton","705542","Midwest Electrical Services Limited","I18821","4,010.10","R&M - Departmental planned (external)","130240709","08/02/2019","Maintenance Programme","Centralised R&M","R2001"
"Wolverhampton City Council","http://opendatacommunities.org/id/metropolitan-district-council/wolverhampton","705542","Midwest Electrical Services Limited","I18552","64.30","R&M - Departmental planned (external)","130239386","08/02/2019","Maintenance Programme","Centralised R&M","R2001"
"Wolverhampton City Council","http://opendatacommunities.org/id/metropolitan-district-council/wolverhampton","705542","Midwest Electrical Services Limited","I18925","2,020.00","R&M - Departmental planned (external)","130241251","15/02/2019","Maintenance Programme","Centralised R&M","R2001"
"Wolverhampton City Council","http://opendatacommunities.org/id/metropolitan-district-council/wolverhampton","705542","Midwest Electrical Services Limited","I18954","178.47","R&M - Departmental planned (external)","130241565","15/02/2019","Maintenance Programme","Centralised R&M","R2001"
"Wolverhampton City Council","http://opendatacommunities.org/id/metropolitan-district-council/wolverhampton","705542","Midwest Electrical Services Limited","I18811","75.34","R&M - Departmental planned (external)","130238871","15/02/2019","Maintenance Programme","Centralised R&M","R2001"
"Wolverhampton City Council","http://opendatacommunities.org/id/metropolitan-district-council/wolverhampton","705542","Midwest Electrical Services Limited","I18862","35.18","R&M - Departmental planned (external)","130239875","15/02/2019","Maintenance Programme","Centralised R&M","R2001"
"Wolverhampton City Council","http://opendatacommunities.org/id/metropolitan-district-council/wolverhampton","705542","Midwest Electrical Services Limited","I18813","68.02","R&M - Departmental planned (external)","130238872","15/02/2019","Maintenance Programme","Centralised R&M","R2001"
"Wolverhampton City Council","http://opendatacommunities.org/id/metropolitan-district-council/wolverhampton","705542","Midwest Electrical Services Limited","I18824","547.45","R&M - Departmental planned (external)","130239134","15/02/2019","Maintenance Programme","Centralised R&M","R2001"
"Wolverhampton City Council","http://opendatacommunities.org/id/metropolitan-district-council/wolverhampton","705542","Midwest Electrical Services Limited","I18822","137.81","R&M - Departmental planned (external)","130238875","15/02/2019","Maintenance Programme","Centralised R&M","R2001"
"Wolverhampton City Council","http://opendatacommunities.org/id/metropolitan-district-council/wolverhampton","705542","Midwest Electrical Services Limited","I18748","6,750.00","R&M - Departmental planned (external)","130238630","15/02/2019","Maintenance Programme","Centralised R&M","R2001"
"Wolverhampton City Council","http://opendatacommunities.org/id/metropolitan-district-council/wolverhampton","705542","Midwest Electrical Services Limited","I18777","290.48","R&M - Departmental planned (external)","130239390","15/02/2019","Maintenance Programme","Centralised R&M","R2001"
"Wolverhampton City Council","http://opendatacommunities.org/id/metropolitan-district-council/wolverhampton","705542","Midwest Electrical Services Limited","I18950","146.32","R&M - Departmental planned (external)","130241381","27/02/2019","Maintenance Programme","Centralised R&M","R2001"
"Wolverhampton City Council","http://opendatacommunities.org/id/metropolitan-district-council/wolverhampton","705542","Midwest Electrical Services Limited","I18929","185.00","R&M - Departmental planned (external)","130241129","27/02/2019","Maintenance Programme","Centralised R&M","R2001"
"Wolverhampton City Council","http://opendatacommunities.org/id/metropolitan-district-council/wolverhampton","705542","Midwest Electrical Services Limited","I19235","1,346.33","R&M - Departmental planned (external)","130244052","27/02/2019","Maintenance Programme","Centralised R&M","R2001"
"Wolverhampton City Council","http://opendatacommunities.org/id/metropolitan-district-council/wolverhampton","705542","Midwest Electrical Services Limited","I19187","1,596.25","R&M - Departmental planned (external)","130243208","27/02/2019","Maintenance Programme","Civic Centre Repairs & Maintenance","R2001"
"Wolverhampton City Council","http://opendatacommunities.org/id/metropolitan-district-council/wolverhampton","705542","Midwest Electrical Services Limited","I19237","188.35","R&M - Departmental planned (external)","130244054","27/02/2019","Maintenance Programme","Centralised R&M","R2001"
"Wolverhampton City Council","http://opendatacommunities.org/id/metropolitan-district-council/wolverhampton","705542","Midwest Electrical Services Limited","I19221","177.91","R&M - Departmental planned (external)","130243621","27/02/2019","Maintenance Programme","Centralised R&M","R2001"
"Wolverhampton City Council","http://opendatacommunities.org/id/metropolitan-district-council/wolverhampton","705542","Midwest Electrical Services Limited","I19176","168.49","R&M - Departmental planned (external)","130242765","27/02/2019","Maintenance Programme","Centralised R&M","R2001"
"Wolverhampton City Council","http://opendatacommunities.org/id/metropolitan-district-council/wolverhampton","705542","Midwest Electrical Services Limited","I19234","1,172.57","R&M - Departmental planned (external)","130244051","27/02/2019","Maintenance Programme","Centralised R&M","R2001"
"Wolverhampton City Council","http://opendatacommunities.org/id/metropolitan-district-council/wolverhampton","705542","Midwest Electrical Services Limited","I19273","9,700.00","R&M - Departmental planned (external)","130244466","27/02/2019","Maintenance Programme","Centralised R&M","R2001"
"Wolverhampton City Council","http://opendatacommunities.org/id/metropolitan-district-council/wolverhampton","705542","Midwest Electrical Services Limited","I19252","65.92","R&M - Departmental planned (external)","130244218","27/02/2019","Maintenance Programme","Centralised R&M","R2001"
"Wolverhampton City Council","http://opendatacommunities.org/id/metropolitan-district-council/wolverhampton","705542","Midwest Electrical Services Limited","I19169","63.85","R&M - Departmental planned (external)","130242758","27/02/2019","Maintenance Programme","Centralised R&M","R2001"
"Wolverhampton City Council","http://opendatacommunities.org/id/metropolitan-district-council/wolverhampton","705542","Midwest Electrical Services Limited","I19148","74.87","R&M - Departmental planned (external)","130242596","27/02/2019","Maintenance Programme","Centralised R&M","R2001"
"Wolverhampton City Council","http://opendatacommunities.org/id/metropolitan-district-council/wolverhampton","705542","Midwest Electrical Services Limited","I19177","63.30","R&M - Departmental planned (external)","130243032","27/02/2019","Maintenance Programme","Centralised R&M","R2001"
"Wolverhampton City Council","http://opendatacommunities.org/id/metropolitan-district-council/wolverhampton","705542","Midwest Electrical Services Limited","I19152","71.38","R&M - Departmental planned (external)","130242599","27/02/2019","Maintenance Programme","Centralised R&M","R2001"
"Wolverhampton City Council","http://opendatacommunities.org/id/metropolitan-district-council/wolverhampton","705542","Midwest Electrical Services Limited","I19163","103.59","R&M - Departmental planned (external)","130242752","27/02/2019","Maintenance Programme","Centralised R&M","R2001"
"Wolverhampton City Council","http://opendatacommunities.org/id/metropolitan-district-council/wolverhampton","705542","Midwest Electrical Services Limited","I19178","103.23","R&M - Departmental planned (external)","130243033","27/02/2019","Maintenance Programme","Centralised R&M","R2001"
"Wolverhampton City Council","http://opendatacommunities.org/id/metropolitan-district-council/wolverhampton","705542","Midwest Electrical Services Limited","I19189","70.14","R&M - Departmental planned (external)","130243210","27/02/2019","Maintenance Programme","Centralised R&M","R2001"
"Wolverhampton City Council","http://opendatacommunities.org/id/metropolitan-district-council/wolverhampton","705542","Midwest Electrical Services Limited","I19190","93.04","R&M - Departmental planned (external)","130243211","27/02/2019","Maintenance Programme","Centralised R&M","R2001"
"Wolverhampton City Council","http://opendatacommunities.org/id/metropolitan-district-council/wolverhampton","705542","Midwest Electrical Services Limited","I19284","73.86","R&M - Departmental planned (external)","130244621","27/02/2019","Maintenance Programme","Centralised R&M","R2001"
"Wolverhampton City Council","http://opendatacommunities.org/id/metropolitan-district-council/wolverhampton","705542","Midwest Electrical Services Limited","I19157","105.59","R&M - Departmental planned (external)","130242746","27/02/2019","Maintenance Programme","Centralised R&M","R2001"
"Wolverhampton City Council","http://opendatacommunities.org/id/metropolitan-district-council/wolverhampton","705542","Midwest Electrical Services Limited","I19285","107.28","R&M - Departmental planned (external)","130244622","27/02/2019","Maintenance Programme","Centralised R&M","R2001"
"Wolverhampton City Council","http://opendatacommunities.org/id/metropolitan-district-council/wolverhampton","705542","Midwest Electrical Services Limited","I19162","85.67","R&M - Departmental planned (external)","130242751","27/02/2019","Maintenance Programme","Centralised R&M","R2001"
"Wolverhampton City Council","http://opendatacommunities.org/id/metropolitan-district-council/wolverhampton","705542","Midwest Electrical Services Limited","I19155","106.58","R&M - Departmental planned (external)","130242744","27/02/2019","Maintenance Programme","Centralised R&M","R2001"
"Wolverhampton City Council","http://opendatacommunities.org/id/metropolitan-district-council/wolverhampton","705542","Midwest Electrical Services Limited","I19175","85.04","R&M - Departmental planned (external)","130242764","27/02/2019","Maintenance Programme","Centralised R&M","R2001"
"Wolverhampton City Council","http://opendatacommunities.org/id/metropolitan-district-council/wolverhampton","705542","Midwest Electrical Services Limited","I18146","1,368.00","R&M - Departmental planned (external)","130233983","27/02/2019","Maintenance Programme","Centralised R&M","R2001"
"Wolverhampton City Council","http://opendatacommunities.org/id/metropolitan-district-council/wolverhampton","705542","Midwest Electrical Services Limited","I17665","4,296.23","R&M - Departmental planned (external)","130230879","27/02/2019","Maintenance Programme","Centralised R&M","R2001"
"Wolverhampton City Council","http://opendatacommunities.org/id/metropolitan-district-council/wolverhampton","705542","Midwest Electrical Services Limited","I17665","2,498.77","R&M - Departmental planned (external)","130230879","27/02/2019","Maintenance Programme","Centralised R&M","R2001"
"Wolverhampton City Council","http://opendatacommunities.org/id/metropolitan-district-council/wolverhampton","705542","Midwest Electrical Services Limited","I19174","133.20","R&M - Departmental planned (external)","130242763","27/02/2019","Facilities Management","Magistrates","R2001"
"Wolverhampton City Council","http://opendatacommunities.org/id/metropolitan-district-council/wolverhampton","705542","Midwest Electrical Services Limited","I19281","30.28","R&M - Departmental planned (external)","130244618","27/02/2019","Maintenance Programme","Centralised R&M","R2001"
"Wolverhampton City Council","http://opendatacommunities.org/id/metropolitan-district-council/wolverhampton","705542","Midwest Electrical Services Limited","I19111","830.00","R&M - Departmental planned (external)","130242458","27/02/2019","Maintenance Programme","Civic Centre Repairs & Maintenance","R2001"
"Wolverhampton City Council","http://opendatacommunities.org/id/metropolitan-district-council/wolverhampton","705542","Midwest Electrical Services Limited","I19263","132.67","R&M - Departmental planned (external)","130244462","27/02/2019","Facilities Management","Magistrates","R2001"
"Wolverhampton City Council","http://opendatacommunities.org/id/metropolitan-district-council/wolverhampton","705542","Midwest Electrical Services Limited","I19153","0.01","R&M - Departmental planned (external)","130242600","27/02/2019","Maintenance Programme","Centralised R&M","R2001"
"Wolverhampton City Council","http://opendatacommunities.org/id/metropolitan-district-council/wolverhampton","705542","Midwest Electrical Services Limited","I19153","0.02","R&M - Departmental planned (external)","130242600","27/02/2019","Maintenance Programme","Centralised R&M","R2001"
"Wolverhampton City Council","http://opendatacommunities.org/id/metropolitan-district-council/wolverhampton","705542","Midwest Electrical Services Limited","I19153","493.61","R&M - Departmental planned (external)","130242600","27/02/2019","Maintenance Programme","Centralised R&M","R2001"
"Wolverhampton City Council","http://opendatacommunities.org/id/metropolitan-district-council/wolverhampton","705542","Midwest Electrical Services Limited","I19153","0.01","R&M - Departmental planned (external)","130242600","27/02/2019","Maintenance Programme","Centralised R&M","R2001"
"Wolverhampton City Council","http://opendatacommunities.org/id/metropolitan-district-council/wolverhampton","705542","Midwest Electrical Services Limited","I19153","0.03","R&M - Departmental planned (external)","130242600","27/02/2019","Maintenance Programme","Centralised R&M","R2001"
"Wolverhampton City Council","http://opendatacommunities.org/id/metropolitan-district-council/wolverhampton","705542","Midwest Electrical Services Limited","I19153","23.38","R&M - Departmental planned (external)","130242600","27/02/2019","Maintenance Programme","Centralised R&M","R2001"
"Wolverhampton City Council","http://opendatacommunities.org/id/metropolitan-district-council/wolverhampton","705542","Midwest Electrical Services Limited","I19153","43.82","R&M - Departmental planned (external)","130242600","27/02/2019","Maintenance Programme","Centralised R&M","R2001"
"Wolverhampton City Council","http://opendatacommunities.org/id/metropolitan-district-council/wolverhampton","705542","Midwest Electrical Services Limited","I19153","0.03","R&M - Departmental planned (external)","130242600","27/02/2019","Maintenance Programme","Centralised R&M","R2001"
"Wolverhampton City Council","http://opendatacommunities.org/id/metropolitan-district-council/wolverhampton","705542","Midwest Electrical Services Limited","I19153","23.38","R&M - Departmental planned (external)","130242600","27/02/2019","Maintenance Programme","Centralised R&M","R2001"
"Wolverhampton City Council","http://opendatacommunities.org/id/metropolitan-district-council/wolverhampton","705542","Midwest Electrical Services Limited","I19173","30.63","R&M - Departmental planned (external)","130242762","27/02/2019","Maintenance Programme","Centralised R&M","R2001"
"Wolverhampton City Council","http://opendatacommunities.org/id/metropolitan-district-council/wolverhampton","705542","Midwest Electrical Services Limited","I18930","1,216.05","R&M - Departmental planned (external)","130241130","27/02/2019","Maintenance Programme","Centralised R&M","R2001"
"Wolverhampton City Council","http://opendatacommunities.org/id/metropolitan-district-council/wolverhampton","705542","Midwest Electrical Services Limited","I18045","1,583.00","R&M - Departmental planned (external)","130232984","15/02/2019","Maintenance Programme","Centralised R&M","R2001"
"Wolverhampton City Council","http://opendatacommunities.org/id/metropolitan-district-council/wolverhampton","705543","Arnold Clark Auto Ltd t/a M M Factors","652071-BI","29.76","Equipment - Purchase","190567395","27/02/2019","Fleet Services","Fleet Management","R4000"
"Wolverhampton City Council","http://opendatacommunities.org/id/metropolitan-district-council/wolverhampton","705543","Arnold Clark Auto Ltd t/a M M Factors","643527-BI","106.80","Equipment - Purchase","190557580","06/02/2019","Fleet Services","Fleet Management","R4000"
"Wolverhampton City Council","http://opendatacommunities.org/id/metropolitan-district-council/wolverhampton","705543","Arnold Clark Auto Ltd t/a M M Factors","640372-BI","8.90","Equipment - Purchase","190557579","06/02/2019","Fleet Services","Fleet Management","R4000"
"Wolverhampton City Council","http://opendatacommunities.org/id/metropolitan-district-council/wolverhampton","705543","Arnold Clark Auto Ltd t/a M M Factors","643528-BI","279.95","Equipment - Purchase","190557581","06/02/2019","Fleet Services","Fleet Management","R4000"
"Wolverhampton City Council","http://opendatacommunities.org/id/metropolitan-district-council/wolverhampton","705543","Arnold Clark Auto Ltd t/a M M Factors","616310-BI","5.76","Equipment - Purchase","190556528","01/02/2019","Fleet Services","Fleet Management","R4000"
"Wolverhampton City Council","http://opendatacommunities.org/id/metropolitan-district-council/wolverhampton","705543","Arnold Clark Auto Ltd t/a M M Factors","616310-BI","3.32","Equipment - Purchase","190556528","01/02/2019","Fleet Services","Fleet Management","R4000"
"Wolverhampton City Council","http://opendatacommunities.org/id/metropolitan-district-council/wolverhampton","705543","Arnold Clark Auto Ltd t/a M M Factors","616310-BI","59.52","Equipment - Purchase","190556528","01/02/2019","Fleet Services","Fleet Management","R4000"
"Wolverhampton City Council","http://opendatacommunities.org/id/metropolitan-district-council/wolverhampton","705543","Arnold Clark Auto Ltd t/a M M Factors","654128-BI","28.74","Equipment - Purchase","190563462","20/02/2019","Fleet Services","Fleet Management","R4000"
"Wolverhampton City Council","http://opendatacommunities.org/id/metropolitan-district-council/wolverhampton","705548","Mike Tivey","SFH7/11/18","75.00","Services - Supplies and Services to service users","130240716","13/02/2019","Strengthening Families","EI Area 7 - Low Hill","R4408"
"Wolverhampton City Council","http://opendatacommunities.org/id/metropolitan-district-council/wolverhampton","705548","Mike Tivey","SFH1/11/2018","87.50","Services - Professional Fees","130242459","01/02/2019","Strengthening Families","EI Area 1- Eastfield","R4400"
"Wolverhampton City Council","http://opendatacommunities.org/id/metropolitan-district-council/wolverhampton","705548","Mike Tivey","SFH1/01/2019","262.50","Services - Professional Fees","130244219","27/02/2019","Strengthening Families","EI Area 1- Eastfield","R4400"
"Wolverhampton City Council","http://opendatacommunities.org/id/metropolitan-district-council/wolverhampton","705548","Mike Tivey","SFH8/001/19","162.50","Services - Supplies and Services to service users","130243216","27/02/2019","Strengthening Families","EI Area 8 -  Children�s Village","R4408"
"Wolverhampton City Council","http://opendatacommunities.org/id/metropolitan-district-council/wolverhampton","705548","Mike Tivey","SFH7/01/19","175.00","Services - Supplies and Services to service users","130244307","27/02/2019","Strengthening Families","EI Area 7 - Low Hill","R4408"
"Wolverhampton City Council","http://opendatacommunities.org/id/metropolitan-district-council/wolverhampton","705548","Mike Tivey","SFH8/11/19","75.00","Services - Supplies and Services to service users","130240957","13/02/2019","Strengthening Families","EI Area 8 -  Children�s Village","R4408"
"Wolverhampton City Council","http://opendatacommunities.org/id/metropolitan-district-council/wolverhampton","705592","Mitchell Diesel Limited","143809","14.82","Equipment - Purchase","190567375","27/02/2019","Fleet Services","Fleet Management","R4000"
"Wolverhampton City Council","http://opendatacommunities.org/id/metropolitan-district-council/wolverhampton","705592","Mitchell Diesel Limited","143704","50.81","Equipment - Purchase","190567374","27/02/2019","Fleet Services","Fleet Management","R4000"
"Wolverhampton City Council","http://opendatacommunities.org/id/metropolitan-district-council/wolverhampton","705609","Mobile Mini UK Limited","7000790146","43.20","Equipment - Hire","130211813","22/02/2019","Bereavement Services","Bereavement services - Grounds maintenance","R4001"
"Wolverhampton City Council","http://opendatacommunities.org/id/metropolitan-district-council/wolverhampton","705609","Mobile Mini UK Limited","7001078123","43.20","Equipment - Hire","130237479","01/02/2019","Leisure Services","Aldersley Leisure Village","R4001"
"Wolverhampton City Council","http://opendatacommunities.org/id/metropolitan-district-council/wolverhampton","705609","Mobile Mini UK Limited","7001128837","51.80","Equipment - Hire","130242348","22/02/2019","Bereavement Services","Bereavement services - Grounds maintenance","R4001"
"Wolverhampton City Council","http://opendatacommunities.org/id/metropolitan-district-council/wolverhampton","705609","Mobile Mini UK Limited","7001128836","50.00","Hire of Plant","130242347","22/02/2019","Environmental Maintenance","Ground Maintenance East","R3201"
"Wolverhampton City Council","http://opendatacommunities.org/id/metropolitan-district-council/wolverhampton","705609","Mobile Mini UK Limited","7001118548","-15.58","Equipment - Hire","130241134","13/02/2019","Environmental Maintenance","Parks - Ranger Service","R4001"
"Wolverhampton City Council","http://opendatacommunities.org/id/metropolitan-district-council/wolverhampton","705609","Mobile Mini UK Limited","7001138932","43.20","Equipment - Hire","130243217","27/02/2019","Bereavement Services","Bereavement services - Grounds maintenance","R4001"
"Wolverhampton City Council","http://opendatacommunities.org/id/metropolitan-district-council/wolverhampton","705609","Mobile Mini UK Limited","7001118547","25.00","Equipment - Hire","130241133","13/02/2019","Leisure Services","Aldersley Leisure Village","R4001"
"Wolverhampton City Council","http://opendatacommunities.org/id/metropolitan-district-council/wolverhampton","705634","Morelock Signs Limited","0000215601","12.82","Signage and Labels","130241136","13/02/2019","Parking Services","Multi Storey-Birch Street","R4009"
"Wolverhampton City Council","http://opendatacommunities.org/id/metropolitan-district-council/wolverhampton","705634","Morelock Signs Limited","0000215601","17.80","Signage and Labels","130241136","13/02/2019","Parking Services","Multi Storey-Birch Street","R4009"
"Wolverhampton City Council","http://opendatacommunities.org/id/metropolitan-district-council/wolverhampton","705634","Morelock Signs Limited","0000215600","950.00","Services - Professional Fees","130241135","13/02/2019","Public Protection","Environmental Protection","R4400"
"Wolverhampton City Council","http://opendatacommunities.org/id/metropolitan-district-council/wolverhampton","705634","Morelock Signs Limited","0000215338","1,044.11","Materials","130240511","06/02/2019","Highways Maintenance","Signs Non Illuminated","R4007"
"Wolverhampton City Council","http://opendatacommunities.org/id/metropolitan-district-council/wolverhampton","705644","Moseley Park School","P18357920180831","600.00","Grant Payments to Individuals","190500972","14/02/2019","Inclusion Support","Pupil Premium","R6402"
"Wolverhampton City Council","http://opendatacommunities.org/id/metropolitan-district-council/wolverhampton","705644","Moseley Park School","P18357920180831","600.00","Grant Payments to Individuals","190500972","14/02/2019","Inclusion Support","Pupil Premium","R6402"
"Wolverhampton City Council","http://opendatacommunities.org/id/metropolitan-district-council/wolverhampton","705644","Moseley Park School","P17647520180615","650.00","Grant Payments to Individuals","190469763","14/02/2019","Inclusion Support","Vulnerable Learners Team","R6402"
"Wolverhampton City Council","http://opendatacommunities.org/id/metropolitan-district-council/wolverhampton","705644","Moseley Park School","P17647520180615","600.00","Grant Payments to Individuals","190469763","14/02/2019","Inclusion Support","Vulnerable Learners Team","R6402"
"Wolverhampton City Council","http://opendatacommunities.org/id/metropolitan-district-council/wolverhampton","705644","Moseley Park School","P17647520180615","600.00","Grant Payments to Individuals","190469763","14/02/2019","Inclusion Support","Vulnerable Learners Team","R6402"
"Wolverhampton City Council","http://opendatacommunities.org/id/metropolitan-district-council/wolverhampton","705644","Moseley Park School","P17647520180615","600.00","Grant Payments to Individuals","190469763","14/02/2019","Inclusion Support","Vulnerable Learners Team","R6402"
"Wolverhampton City Council","http://opendatacommunities.org/id/metropolitan-district-council/wolverhampton","705644","Moseley Park School","P17647520180615","600.00","Grant Payments to Individuals","190469763","14/02/2019","Inclusion Support","Vulnerable Learners Team","R6402"
"Wolverhampton City Council","http://opendatacommunities.org/id/metropolitan-district-council/wolverhampton","705644","Moseley Park School","P19123620181119","600.00","Grant Payments to Individuals","190530594","14/02/2019","Inclusion Support","Pupil Premium","R6402"
"Wolverhampton City Council","http://opendatacommunities.org/id/metropolitan-district-council/wolverhampton","705644","Moseley Park School","P19123620181119","600.00","Grant Payments to Individuals","190530594","14/02/2019","Inclusion Support","Pupil Premium","R6402"
"Wolverhampton City Council","http://opendatacommunities.org/id/metropolitan-district-council/wolverhampton","705644","Moseley Park School","P19123620181119","600.00","Grant Payments to Individuals","190530594","14/02/2019","Inclusion Support","Pupil Premium","R6402"
"Wolverhampton City Council","http://opendatacommunities.org/id/metropolitan-district-council/wolverhampton","705644","Moseley Park School","P19123620181119","600.00","Grant Payments to Individuals","190530594","14/02/2019","Inclusion Support","Pupil Premium","R6402"
"Wolverhampton City Council","http://opendatacommunities.org/id/metropolitan-district-council/wolverhampton","705644","Moseley Park School","P19123620181119","600.00","Grant Payments to Individuals","190530594","14/02/2019","Inclusion Support","Pupil Premium","R6402"
"Wolverhampton City Council","http://opendatacommunities.org/id/metropolitan-district-council/wolverhampton","705644","Moseley Park School","P19657520190122","600.00","Grant Payments to Individuals","190553903","14/02/2019","Inclusion Support","Pupil Premium","R6402"
"Wolverhampton City Council","http://opendatacommunities.org/id/metropolitan-district-council/wolverhampton","705646","Mossvale Maint & Sealing Servs Limited","58487","375.00","TPP - Street Cleansing","130243832","13/02/2019","Highways Maintenance","Brook course, Culvert & Subway Maintenance","R5026"
"Wolverhampton City Council","http://opendatacommunities.org/id/metropolitan-district-council/wolverhampton","705650","Motivation(Traffic Control)Limited","041101","153.34","R&M - Departmental planned (internal)","130242766","06/02/2019","Facilities Management","Magistrates","R2000"
"Wolverhampton City Council","http://opendatacommunities.org/id/metropolitan-district-council/wolverhampton","705680","M-R-S Communications Limited","1186471","130.00","Grant Payments","130241504","08/02/2019","Licensing","Private Hire Drivers","R4700"
"Wolverhampton City Council","http://opendatacommunities.org/id/metropolitan-district-council/wolverhampton","705680","M-R-S Communications Limited","238412","520.00","Equipment - Hire","130242602","06/02/2019","Licensing","Private Hire Vehicles","R4001"
"Wolverhampton City Council","http://opendatacommunities.org/id/metropolitan-district-council/wolverhampton","705680","M-R-S Communications Limited","238412","4,940.00","Equipment - Hire","130242602","06/02/2019","Licensing","Private Hire Vehicles","R4001"
"Wolverhampton City Council","http://opendatacommunities.org/id/metropolitan-district-council/wolverhampton","705680","M-R-S Communications Limited","1186228","130.00","Equipment - Hire","130244474","20/02/2019","Visitor Economy","The Little Civic","R4001"
"Wolverhampton City Council","http://opendatacommunities.org/id/metropolitan-district-council/wolverhampton","705746","Nabma","18/543","300.00","Training Expenses","130241138","08/02/2019","Markets","Wolverhampton Indoor and Open Market","R1650"
"Wolverhampton City Council","http://opendatacommunities.org/id/metropolitan-district-council/wolverhampton","705746","Nabma","18/550","1,000.00","Training Expenses","130242767","27/02/2019","Markets","Bilston Market and Licensed Operations","R1650"
"Wolverhampton City Council","http://opendatacommunities.org/id/metropolitan-district-council/wolverhampton","705746","Nabma","18/550","1,000.00","Training Expenses","130242767","27/02/2019","Markets","Wolverhampton Indoor and Open Market","R1650"
"Wolverhampton City Council","http://opendatacommunities.org/id/metropolitan-district-council/wolverhampton","705751","Nalco Limited","9400489972","416.62","R&M - Departmental planned (external)","130240512","06/02/2019","Maintenance Programme","Civic Centre Repairs & Maintenance","R2001"
"Wolverhampton City Council","http://opendatacommunities.org/id/metropolitan-district-council/wolverhampton","705763","Nasen","65312","299.00","Publications","130244786","20/02/2019","Special Educational Needs","SEN Early Years Team","R4310"
"Wolverhampton City Council","http://opendatacommunities.org/id/metropolitan-district-council/wolverhampton","705780","National Back Exchange","4037","55.00","Subscriptions","130242768","27/02/2019","Adult Education","Skills for Work","R4701"
"Wolverhampton City Council","http://opendatacommunities.org/id/metropolitan-district-council/wolverhampton","705806","Natural History Lecture Service","19641","700.00","Services - Professional Fees","130244625","27/02/2019","Visitor Economy","Education And Access","R4400"
"Wolverhampton City Council","http://opendatacommunities.org/id/metropolitan-district-council/wolverhampton","705838","Network Rail Infrastructure Ltd","1241249","15,713.24","External Professional Fees","130244220","27/02/2019","-","GF - Interchange - Ph2 Train Station/MSCP/Metro Extension","C6002"
"Wolverhampton City Council","http://opendatacommunities.org/id/metropolitan-district-council/wolverhampton","705854","Newauto Limited T/A Mogo (UK)","T28871","13,836.00","Signage and Labels","130241259","13/02/2019","Licensing","Licensing - Private Hire Vehicles","R4009"
"Wolverhampton City Council","http://opendatacommunities.org/id/metropolitan-district-council/wolverhampton","705854","Newauto Limited T/A Mogo (UK)","T28884","19.90","Signage and Labels","130241260","13/02/2019","Licensing","Licensing - Private Hire Vehicles","R4009"
"Wolverhampton City Council","http://opendatacommunities.org/id/metropolitan-district-council/wolverhampton","705854","Newauto Limited T/A Mogo (UK)","T28884","4,301.00","Signage and Labels","130241260","13/02/2019","Licensing","Licensing - Private Hire Vehicles","R4009"
"Wolverhampton City Council","http://opendatacommunities.org/id/metropolitan-district-council/wolverhampton","705856","Newbridge Surgery","M2019Q315HL2COMQ","1,275.00","TPP - Public Health Contracts","190567485","27/02/2019","Healthy Life Expectancy","Healthy Lifestyles","R5060"
"Wolverhampton City Council","http://opendatacommunities.org/id/metropolitan-district-council/wolverhampton","705856","Newbridge Surgery","M2019Q315HL1IHCQ","60.00","TPP - Public Health Contracts","190567484","27/02/2019","Healthy Life Expectancy","Healthy Lifestyles","R5060"
"Wolverhampton City Council","http://opendatacommunities.org/id/metropolitan-district-council/wolverhampton","705856","Newbridge Surgery","M2018Q3.15SHIURFQ","200.00","TPP - Public Health Contracts","190557234","01/02/2019","Starting and Developing Well","Sexual Health","R5060"
"Wolverhampton City Council","http://opendatacommunities.org/id/metropolitan-district-council/wolverhampton","705856","Newbridge Surgery","M2018Q315SHIUDFQ","300.00","TPP - Public Health Contracts","190557232","01/02/2019","Starting and Developing Well","Sexual Health","R5060"
"Wolverhampton City Council","http://opendatacommunities.org/id/metropolitan-district-council/wolverhampton","705856","Newbridge Surgery","M2018Q315SHCIFIQ","100.00","TPP - Public Health Contracts","190557230","01/02/2019","Starting and Developing Well","Sexual Health","R5060"
"Wolverhampton City Council","http://opendatacommunities.org/id/metropolitan-district-council/wolverhampton","705856","Newbridge Surgery","M2018Q315SHCHLAQ","40.00","TPP - Public Health Contracts","190557235","01/02/2019","Starting and Developing Well","Sexual Health","R5060"
"Wolverhampton City Council","http://opendatacommunities.org/id/metropolitan-district-council/wolverhampton","705856","Newbridge Surgery","M2018Q3.15SHIUDRQ","50.00","TPP - Public Health Contracts","190557233","01/02/2019","Starting and Developing Well","Sexual Health","R5060"
"Wolverhampton City Council","http://opendatacommunities.org/id/metropolitan-district-council/wolverhampton","705856","Newbridge Surgery","M2018Q315SHCIFRQ","90.00","TPP - Public Health Contracts","190557231","01/02/2019","Starting and Developing Well","Sexual Health","R5060"
"Wolverhampton City Council","http://opendatacommunities.org/id/metropolitan-district-council/wolverhampton","705861","Newhampton Arts Centre","7403","35.00","Materials","130243219","13/02/2019","Public Health Business Management","Public Health Support Costs","R4007"
"Wolverhampton City Council","http://opendatacommunities.org/id/metropolitan-district-council/wolverhampton","705878","NGA (National Governors�Association)","65564","24.00","Equipment - Purchase","130242172","06/02/2019","School Improvement","Governors Support Team","R4000"
"Wolverhampton City Council","http://opendatacommunities.org/id/metropolitan-district-council/wolverhampton","705899","Nikki Downes","5JAN","63.75","TPP - Child Care provided for client","130242769","27/02/2019","Adult Education","Discretionary Fund","R5034"
"Wolverhampton City Council","http://opendatacommunities.org/id/metropolitan-district-council/wolverhampton","705904","Nisbets PLC","18354121","17.09","Cleaning Supplies and Materials","130242907","27/02/2019","Learning Disability Provider","Duke Street Bungalows","R2705"
"Wolverhampton City Council","http://opendatacommunities.org/id/metropolitan-district-council/wolverhampton","705904","Nisbets PLC","18346385","28.78","Cleaning Supplies and Materials","130242770","27/02/2019","Learning Disability Provider","Support Plus","R2705"
"Wolverhampton City Council","http://opendatacommunities.org/id/metropolitan-district-council/wolverhampton","705904","Nisbets PLC","18346385","4.99","Cleaning Supplies and Materials","130242770","27/02/2019","Learning Disability Provider","Support Plus","R2705"
"Wolverhampton City Council","http://opendatacommunities.org/id/metropolitan-district-council/wolverhampton","705904","Nisbets PLC","18330651","26.99","Cleaning Supplies and Materials","130242460","22/02/2019","Learning Disability Provider","Duke Street Bungalows","R2705"
"Wolverhampton City Council","http://opendatacommunities.org/id/metropolitan-district-council/wolverhampton","705907","NJB Physiotherapy Limited","61600","15.00","Services - Professional Fees","130242174","06/02/2019","Human Resources","HR Advice","R4400"
"Wolverhampton City Council","http://opendatacommunities.org/id/metropolitan-district-council/wolverhampton","705907","NJB Physiotherapy Limited","62930","168.00","Services - Professional Fees","130242183","06/02/2019","Human Resources","HR Advice","R4400"
"Wolverhampton City Council","http://opendatacommunities.org/id/metropolitan-district-council/wolverhampton","705907","NJB Physiotherapy Limited","62937","126.00","Services - Professional Fees","130242187","06/02/2019","Human Resources","HR Advice","R4400"
"Wolverhampton City Council","http://opendatacommunities.org/id/metropolitan-district-council/wolverhampton","705907","NJB Physiotherapy Limited","62655","21.00","Services - Professional Fees","130242176","06/02/2019","Human Resources","HR Advice","R4400"
"Wolverhampton City Council","http://opendatacommunities.org/id/metropolitan-district-council/wolverhampton","705907","NJB Physiotherapy Limited","62890","168.00","Services - Professional Fees","130242178","06/02/2019","Human Resources","HR Advice","R4400"
"Wolverhampton City Council","http://opendatacommunities.org/id/metropolitan-district-council/wolverhampton","705907","NJB Physiotherapy Limited","62889","168.00","Services - Professional Fees","130242177","06/02/2019","Human Resources","HR Advice","R4400"
"Wolverhampton City Council","http://opendatacommunities.org/id/metropolitan-district-council/wolverhampton","705907","NJB Physiotherapy Limited","62895","42.00","Services - Professional Fees","130242180","06/02/2019","Human Resources","HR Advice","R4400"
"Wolverhampton City Council","http://opendatacommunities.org/id/metropolitan-district-council/wolverhampton","705907","NJB Physiotherapy Limited","60601","126.00","Services - Professional Fees","130221819","01/02/2019","Human Resources","HR Advice","R4400"
"Wolverhampton City Council","http://opendatacommunities.org/id/metropolitan-district-council/wolverhampton","705907","NJB Physiotherapy Limited","62946","85.00","Services - Professional Fees","130243225","08/02/2019","Human Resources","HR Advice","R4400"
"Wolverhampton City Council","http://opendatacommunities.org/id/metropolitan-district-council/wolverhampton","705907","NJB Physiotherapy Limited","62938","63.00","Services - Professional Fees","130242188","06/02/2019","Human Resources","HR Advice","R4400"
"Wolverhampton City Council","http://opendatacommunities.org/id/metropolitan-district-council/wolverhampton","705907","NJB Physiotherapy Limited","62894","105.00","Services - Professional Fees","130242179","06/02/2019","Human Resources","HR Advice","R4400"
"Wolverhampton City Council","http://opendatacommunities.org/id/metropolitan-district-council/wolverhampton","705907","NJB Physiotherapy Limited","62566","84.00","Services - Professional Fees","130242175","06/02/2019","Human Resources","HR Advice","R4400"
"Wolverhampton City Council","http://opendatacommunities.org/id/metropolitan-district-council/wolverhampton","705907","NJB Physiotherapy Limited","62942","210.00","Services - Professional Fees","130243223","13/02/2019","Human Resources","HR Advice","R4400"
"Wolverhampton City Council","http://opendatacommunities.org/id/metropolitan-district-council/wolverhampton","705907","NJB Physiotherapy Limited","62941","42.00","Services - Professional Fees","130243222","13/02/2019","Human Resources","HR Advice","R4400"
"Wolverhampton City Council","http://opendatacommunities.org/id/metropolitan-district-council/wolverhampton","705907","NJB Physiotherapy Limited","62940","126.00","Services - Professional Fees","130243221","08/02/2019","Human Resources","HR Advice","R4400"
"Wolverhampton City Council","http://opendatacommunities.org/id/metropolitan-district-council/wolverhampton","705907","NJB Physiotherapy Limited","62939","126.00","Services - Professional Fees","130245498","27/02/2019","Human Resources","HR Advice","R4400"
"Wolverhampton City Council","http://opendatacommunities.org/id/metropolitan-district-council/wolverhampton","705907","NJB Physiotherapy Limited","63141","126.00","Services - Professional Fees","130243228","13/02/2019","Human Resources","HR Advice","R4400"
"Wolverhampton City Council","http://opendatacommunities.org/id/metropolitan-district-council/wolverhampton","705907","NJB Physiotherapy Limited","62943","147.00","Services - Professional Fees","130243224","13/02/2019","Human Resources","HR Advice","R4400"
"Wolverhampton City Council","http://opendatacommunities.org/id/metropolitan-district-council/wolverhampton","705907","NJB Physiotherapy Limited","63009","85.00","Services - Professional Fees","130243226","13/02/2019","Human Resources","HR Advice","R4400"
"Wolverhampton City Council","http://opendatacommunities.org/id/metropolitan-district-council/wolverhampton","705907","NJB Physiotherapy Limited","63010","85.00","Services - Professional Fees","130243227","13/02/2019","Human Resources","HR Advice","R4400"
"Wolverhampton City Council","http://opendatacommunities.org/id/metropolitan-district-council/wolverhampton","705907","NJB Physiotherapy Limited","62935","85.00","Services - Professional Fees","130243220","08/02/2019","Human Resources","HR Advice","R4400"
"Wolverhampton City Council","http://opendatacommunities.org/id/metropolitan-district-council/wolverhampton","705907","NJB Physiotherapy Limited","62899","85.00","Services - Professional Fees","130242182","06/02/2019","Human Resources","HR Advice","R4400"
"Wolverhampton City Council","http://opendatacommunities.org/id/metropolitan-district-council/wolverhampton","705907","NJB Physiotherapy Limited","62932","85.00","Services - Professional Fees","130242184","06/02/2019","Human Resources","HR Advice","R4400"
"Wolverhampton City Council","http://opendatacommunities.org/id/metropolitan-district-council/wolverhampton","705907","NJB Physiotherapy Limited","62934","85.00","Services - Professional Fees","130242186","06/02/2019","Human Resources","HR Advice","R4400"
"Wolverhampton City Council","http://opendatacommunities.org/id/metropolitan-district-council/wolverhampton","705907","NJB Physiotherapy Limited","62933","85.00","Services - Professional Fees","130242185","06/02/2019","Human Resources","HR Advice","R4400"
"Wolverhampton City Council","http://opendatacommunities.org/id/metropolitan-district-council/wolverhampton","705907","NJB Physiotherapy Limited","62896","84.00","Services - Professional Fees","130242181","06/02/2019","Human Resources","HR Advice","R4400"
"Wolverhampton City Council","http://opendatacommunities.org/id/metropolitan-district-council/wolverhampton","705907","NJB Physiotherapy Limited","60604","168.00","Services - Professional Fees","130221822","01/02/2019","Human Resources","HR Advice","R4400"
"Wolverhampton City Council","http://opendatacommunities.org/id/metropolitan-district-council/wolverhampton","705913","No 5 Chambers Limited","1012","8,018.75","Services - Professional Fees","130244056","13/02/2019","Planning","Planning","R4400"
"Wolverhampton City Council","http://opendatacommunities.org/id/metropolitan-district-council/wolverhampton","705913","No 5 Chambers Limited","8382","6,266.67","Services - Professional Fees","130242462","13/02/2019","Public Protection","EHTS Operational Costs","R4400"
"Wolverhampton City Council","http://opendatacommunities.org/id/metropolitan-district-council/wolverhampton","705913","No 5 Chambers Limited","8385","1,750.00","Services - Professional Fees","130242463","13/02/2019","Public Protection","EHTS Operational Costs","R4400"
"Wolverhampton City Council","http://opendatacommunities.org/id/metropolitan-district-council/wolverhampton","705913","No 5 Chambers Limited","8378","3,016.67","Services - Professional Fees","130242461","13/02/2019","Public Protection","EHTS Operational Costs","R4400"
"Wolverhampton City Council","http://opendatacommunities.org/id/metropolitan-district-council/wolverhampton","705913","No 5 Chambers Limited","1260","750.00","Services - Professional Fees","130242603","13/02/2019","Legal Services","Centralised External Legal Costs","R4400"
"Wolverhampton City Council","http://opendatacommunities.org/id/metropolitan-district-council/wolverhampton","705913","No 5 Chambers Limited","372","750.00","Services - Professional Fees","130242604","13/02/2019","Legal Services","Centralised External Legal Costs","R4400"
"Wolverhampton City Council","http://opendatacommunities.org/id/metropolitan-district-council/wolverhampton","705913","No 5 Chambers Limited","8390","3,016.67","Services - Professional Fees","130244787","22/02/2019","Public Protection","EHTS Operational Costs","R4400"
"Wolverhampton City Council","http://opendatacommunities.org/id/metropolitan-district-council/wolverhampton","705915","Noah�s Ark Environmental Services Ltd","1901","840.00","Services - Professional Fees","130243229","08/02/2019","Public Protection","Pest Control & Animal Welfare","R4400"
"Wolverhampton City Council","http://opendatacommunities.org/id/metropolitan-district-council/wolverhampton","705916","Nobisco Limited","575234","137.24","Cleaning Supplies and Materials","130242015","01/02/2019","Environmental Maintenance","Ground Maintenance East","R2705"
"Wolverhampton City Council","http://opendatacommunities.org/id/metropolitan-district-council/wolverhampton","705916","Nobisco Limited","579092","181.86","Cleaning Supplies and Materials","130244629","22/02/2019","Visitor Economy","Bantock House Museum","R2705"
"Wolverhampton City Council","http://opendatacommunities.org/id/metropolitan-district-council/wolverhampton","705916","Nobisco Limited","579089","135.88","Cleaning Supplies and Materials","130244626","22/02/2019","Catering","Civic Centre Catering","R2705"
"Wolverhampton City Council","http://opendatacommunities.org/id/metropolitan-district-council/wolverhampton","705916","Nobisco Limited","572768","38.21","Cleaning Supplies and Materials","130240522","01/02/2019","Leisure Services","Bert Williams Leisure Centre Caf�","R2705"
"Wolverhampton City Council","http://opendatacommunities.org/id/metropolitan-district-council/wolverhampton","705916","Nobisco Limited","575235","19.72","Cleaning Supplies and Materials","130242016","01/02/2019","Visitor Economy","Bantock - Tea Rooms","R2705"
